Cogmind - Beta 16 @@@ ROGUE MODE // 2026.01.01 @ 14:24:04 Player: Dosh Result: System corrupted Performance ------------- Evolutions (7) 3500 Regions Visited (36) 7200 Robots Destroyed (417) 2085 Value Destroyed (25889) 25889 Prototype IDs (63) 1260 Alien Tech Used (1) 200 Bonus (19508) 19508 TOTAL SCORE: 59642 Bonus ------- High Alert Combat Kills 2264 Follower Combat Kills 7144 Entered Garrisons 2000 Used RIF Installer 5500 Network Hubs Disabled 200 Met Zhirov 300 Built Enhanced Grunts 300 A7 Reached Mainframe 300 Met R17 at Cetus 500 Met R17 at Research 2000 Friendly Fire -1000 Cogmind --------- Core Integrity 0/1300 Matter 153/300 Energy 50/100 System Corruption 100% Temperature Cool (0) Movement Treading (330) Ox2 Location -3/Quarantine Parts ------- > --- POWER (3) -------- (None) > --- PROPULSION (6) --- Armored Heavy Treads > --- UTILITY (10) ----- Advanced Cooling System Huge Storage Unit Hardened Heavy Armor Plating Centrium Medium Armor Plating > --- WEAPON (2) ------- Hypercooled Linear Accelerator Hypercooled Linear Accelerator > --- INVENTORY (25) --- Quantum Reactor Reinforced Quantum Reactor Advanced Medium Treads Advanced Cooling System Experimental Coolant Injector Experimental Coolant Injector Experimental EM Shield Relay Coupler [Sentry] (26) Relay Coupler [Specialist] (24) Relay Coupler [Heavy] (16) Relay Coupler [Proto] (9) Subatomic Replicator Enhanced Quantum Rifle Compact HERF Cannon Compact HERF Cannon Core Cannon Neutron Missile Launcher Advanced Remote Datajack Peak State ------------ > --- POWER ------------ Cooled Antimatter Reactor Quantum Reactor Quantum Reactor > --- PROPULSION ------- Advanced Heavy Treads Centrium Heavy Treads Advanced Heavy Siege Treads > --- UTILITY ---------- Experimental Heat Sink Advanced Cooling System Advanced Coolant Injector Huge Storage Unit Structural Scanner Quantum Capacitor Centrium Medium Armor Plating Advanced Force Field Relay Coupler [C] > --- WEAPON ----------- Enhanced Nova Cannon Advanced Remote Datajack > --- INVENTORY -------- Quantum Reactor Reinforced Quantum Reactor Armored Heavy Treads Advanced Cooling System Experimental Coolant Injector Advanced Transmission Jammer Experimental EM Shield Improved Force Field Relay Coupler [Grunt] Relay Coupler [Sentry] Relay Coupler [Specialist] Relay Coupler [Heavy] Relay Coupler [Proto] High-powered Transdimensional Reconstructor Subatomic Replicator Enhanced Quantum Rifle Compact HERF Cannon Compact HERF Cannon Core Cannon Neutron Missile Launcher Advanced Remote Datajack [Rating: 176] Favorites ----------- Power F-cell Engine Engine F-cell Engine Power Core Neutrino Core Reactor Quantum Reactor Propulsion Light Treads Treads Light Treads Utility Huge Storage Unit Device Advanced Heat Sink Storage Huge Storage Unit Processor Improved Armor Integrity Analyzer Hackware Relay Coupler [Grunt] Protection Hardened Medium Armor Plating Weapon Ion Cannon Energy Gun Quantum Rifle Energy Cannon Ion Cannon Ballistic Gun Light Assault Rifle Ballistic Cannon Light Cannon Launcher Missile Launcher Special Weapon Improved Remote Datajack Build | -11 -10 -10 -9 -9 -9 -8 -8 -8 -8 -8 -7 -7 -7 -7 -7 -7 -6 -6 -6 -6 -5 -5 -5 -5 -5 -5 -4 -4 -4 -4 -4 -4 -4 -4 -3 -3 ------- Run | Yrd Mat Min Mat Min Exi Min Mat Gar Mat Gar Fac Gar Fac Gar Fac Gar Fac Was Fac Gar Fac Was Fac Gar Fac Gar Fac Gar Fac Ext Cet Arc Hub Gar Res Qua Slots Evolved 14 | . . . 2 . . . 2 . . . 2 . . . . . 2 . . . 2 . . . . . 2 . . . . . . . 2 . Power 2 | . . . . . . . . . . . . . . . . . 1 . . . . . . . . . . . . . . . . . 1 . Propulsion 4 | . . . 1 . . . . . . . 1 . . . . . . . . . . . . . . . 1 . . . . . . . 1 . Utility 8 | . . . 1 . . . 2 . . . 1 . . . . . 1 . . . 2 . . . . . 1 . . . . . . . . . Weapon . | . . . . . . . . . . . . . . . . . . . . . . . . . . . . . . . . . . . . . Parts Attached 311 | 7 7 5 21 4 1 1 29 11 6 6 2 8 3 16 4 16 4 4 2 14 4 . 9 15 5 15 5 13 11 3 6 . 12 20 10 12 Power 30 | 2 1 1 4 . . . 1 . 1 . . 1 . 1 . 1 1 . . . . . 2 . . 2 . . 2 . . . 3 5 2 . Engine 11 | 2 . . 4 . . . 1 . 1 . . . . . . . . . . . . . 2 . . . . . 1 . . . . . . . Core 5 | . 1 1 . . . . . . . . . 1 . . . . 1 . . . . . . . . . . . 1 . . . . . . . Reactor 14 | . . . . . . . . . . . . . . 1 . 1 . . . . . . . . . 2 . . . . . . 3 5 2 . Propulsion 65 | 2 . 2 10 1 . . 9 3 . 2 1 2 1 3 1 4 2 2 . 4 . . . . . 1 1 2 1 . 3 . 1 4 2 1 Treads 65 | 2 . 2 10 1 . . 9 3 . 2 1 2 1 3 1 4 2 2 . 4 . . . . . 1 1 2 1 . 3 . 1 4 2 1 Leg . | . . . . . . . . . . . . . . . . . . . . . . . . . . . . . . . . . . . . . Wheel . | . . . . . . . . . . . . . . . . . . . . . . . . . . . . . . . . . . . . . Hover . | . . . . . . . . . . . . . . . . . . . . . . . . . . . . . . . . . . . . . Flight . | . . . . . . . . . . . . . . . . . . . . . . . . . . . . . . . . . . . . . Utility 165 | 1 2 2 4 1 1 1 14 6 4 4 1 4 1 9 2 10 1 1 2 9 3 . 4 11 5 9 4 9 8 2 3 . 7 8 5 7 Device 47 | . . . 1 1 . 1 4 2 1 . . 1 . . . 1 . . 1 4 2 . . 1 . 2 3 2 4 1 1 . 4 3 3 4 Storage 5 | 1 1 1 . . . . 1 . . . . . . . . . . . . . . . . . . . . . 1 . . . . . . . Processor 1 | . . . . . . . . . . . . . . . . . . . . . . . . . . . . 1 . . . . . . . . Hackware 83 | . . . . . . . 1 1 3 4 1 2 1 7 2 8 1 1 1 4 1 . 4 9 5 7 1 6 1 1 . . 3 4 2 2 Protection 29 | . 1 1 3 . 1 . 8 3 . . . 1 . 2 . 1 . . . 1 . . . 1 . . . . 2 . 2 . . 1 . 1 Artifact . | . . . . . . . . . . . . . . . . . . . . . . . . . . . . . . . . . . . . . Weapon 51 | 2 4 . 3 2 . . 5 2 1 . . 1 1 3 1 1 . 1 . 1 1 . 3 4 . 3 . 2 . 1 . . 1 3 1 4 Energy Gun 5 | 1 . . . . . . 1 . . . . 1 . . . . . . . . . . . . . . . . . . . . . 2 . . Energy Cannon 23 | . . . 2 1 . . 3 2 . . . . 1 1 . . . . . 1 1 . 2 3 . 2 . 1 . 1 . . . . 1 1 Ballistic Gun 4 | 1 2 . 1 . . . . . . . . . . . . . . . . . . . . . . . . . . . . . . . . . Ballistic Cannon 4 | . 2 . . . . . . . . . . . . . . . . . . . . . . . . . . . . . . . . . . 2 Launcher 5 | . . . . 1 . . 1 . . . . . . 1 . . . 1 . . . . . . . . . 1 . . . . . . . . Special Weapon 10 | . . . . . . . . . 1 . . . . 1 1 1 . . . . . . 1 1 . 1 . . . . . . 1 1 . 1 Impact Weapon . | . . . . . . . . . . . . . . . . . . . . . . . . . . . . . . . . . . . . . Slashing Weapon . | . . . . . . . . . . . . . . . . . . . . . . . . . . . . . . . . . . . . . Piercing Weapon . | . . . . . . . . . . . . . . . . . . . . . . . . . . . . . . . . . . . . . Special Melee Weapon . | . . . . . . . . . . . . . . . . . . . . . . . . . . . . . . . . . . . . . Unidentified Prototypes 10 | . . . 2 . . . . . . . . . . . . . . 1 . . . . 1 . . . . . . 1 2 . 1 . . 2 Corrupted Parts 3 | . . . . . . . . . . . . . . . . . . . . . . . . . . . . . . . 1 . . . . 2 System Corruption 27 | . . . . . . . . . . . . . . . . . . . . . . . . . . . . . . . 9 . . . . 18 Parts Lost 81 | . . . . 2 . 2 8 6 . 1 1 2 2 2 . 10 . . . 3 . . . 1 . . . . 3 . 2 . 7 6 . 23 Power 13 | . . . . . . . 1 1 . 1 . . . . . 1 . . . . . . . . . . . . 2 . . . 2 1 . 4 Propulsion 26 | . . . . 1 . . 4 2 . . 1 1 1 2 . 6 . . . 1 . . . . . . . . . . 2 . 1 1 . 3 Utility 33 | . . . . 1 . 1 2 3 . . . 1 . . . 1 . . . 2 . . . 1 . . . . 1 . . . 3 3 . 14 Weapon 9 | . . . . . . 1 1 . . . . . 1 . . 2 . . . . . . . . . . . . . . . . 1 1 . 2 Highest Loss Streak 8 | . . . . 1 . 1 7 2 . 1 1 2 2 1 . 4 . . . 2 . . . 1 . . . . 2 . 1 . 3 3 . 8 To Critical Strikes 6 | . . . . . . . . . . . . . . . . . . . . 1 . . . . . . . . . . 1 . . 1 . 3 Average Backups 20 | . 7 15 19 19 19 18 18 21 23 23 20 19 20 24 24 22 20 22 23 22 21 21 21 21 21 21 21 21 21 21 21 21 20 21 23 21 Power 1 | . 1 2 2 2 2 2 2 1 1 . . . 1 1 2 1 . . 1 1 1 1 2 2 2 2 2 1 1 2 2 2 1 1 1 1 Propulsion 2 | . 1 4 4 4 4 4 3 3 4 4 3 2 1 . 2 . . . 1 1 2 2 2 2 2 2 2 2 2 2 2 2 2 1 1 1 Utility 11 | . . 3 8 9 9 9 7 10 11 13 12 11 13 17 16 16 17 15 15 14 12 12 11 10 13 12 13 14 13 12 12 12 12 14 14 10 Weapon 3 | . 3 5 4 4 4 3 4 4 5 4 4 4 4 3 3 2 2 3 4 4 5 5 4 4 3 2 2 2 2 3 4 4 3 3 5 4 Tool/Special . | . . . . . . . . . . . . . . . . . . . . . . . . . . . . . . . . . . . . . Unused Backups 69 | . 2 . 6 . 1 . 4 1 . . . 1 1 4 . 3 . 2 . 6 . . . 4 . 8 . 3 1 . 1 . . 4 2 15 Power 7 | . . . . . . . 1 . . . . . . . . . . . . 1 . . . 1 . . . . 1 . 1 . . 1 . 1 Propulsion 5 | . . . . . . . 1 . . . . . . . . . . . . 3 . . . . . . . . . . . . . . . 1 Utility 34 | . . . 1 . . . . . . . . 1 1 3 . 3 . 1 . 2 . . . . . 7 . 2 . . . . . 3 2 8 Weapon 20 | . 2 . 5 . 1 . 2 1 . . . . . 1 . . . 1 . . . . . 3 . 1 . 1 . . . . . . . 2 Tool/Special 3 | . . . . . . . . . . . . . . . . . . . . . . . . . . . . . . . . . . . . 3 Average Slot Usage (%) 88 | . 91 100 99 97 100 99 92 94 98 97 99 99 100 99 99 94 81 84 80 79 78 82 81 80 80 81 77 83 83 79 80 78 81 79 79 74 Engine 4 | . 1 . 10 11 11 11 8 9 9 9 7 . . . . . . . . . . . 6 11 11 5 5 5 4 5 5 5 1 . . . Core 2 | . 12 14 . . . . . . . . . 6 7 4 . . 2 6 6 6 5 5 1 . . . . . 2 5 5 5 1 . . . Reactor 2 | . . . . . . . . . . . . . . 2 7 6 6 6 6 6 5 5 1 . . 4 5 5 1 . . . 7 10 14 13 Treads 21 | . 27 28 33 33 33 33 26 26 26 25 29 30 30 29 30 26 21 17 13 14 11 11 11 11 11 11 11 15 15 15 13 10 13 11 14 13 Device 13 | . . . 10 9 11 10 15 13 8 9 7 7 7 . . 5 1 4 6 12 20 23 15 18 17 21 24 22 20 20 21 21 25 23 21 21 Storage 7 | . 14 14 11 11 11 11 9 9 9 9 7 7 7 7 7 7 6 6 6 6 5 5 5 5 5 5 5 5 5 5 5 5 5 5 4 4 Hackware 11 | . . . . . . . . 3 15 13 17 16 21 21 25 26 22 21 20 11 9 11 18 14 15 12 10 13 15 11 10 10 10 13 13 8 Protection 8 | . 6 14 11 11 11 11 14 14 11 13 12 12 8 14 11 3 6 6 6 5 5 5 5 4 5 5 5 5 5 5 8 10 5 3 1 1 Energy Gun 1 | . 2 . . . . . 2 1 . . . 6 2 7 7 3 . . . . . . . . . . . . . . . . . 2 . . Energy Cannon 9 | . . . 19 21 22 21 13 15 16 14 14 7 6 2 . 6 6 10 13 8 5 5 5 7 9 7 6 7 8 7 5 5 6 3 3 3 Special Weapon 2 | . . . . . . . . . 1 3 . . 4 4 7 4 5 1 . 4 5 5 4 2 1 2 3 2 1 2 5 5 3 3 4 2 Peak Build Rating 176 | 6 10 11 21 22 24 26 48 48 42 42 46 55 56 59 59 60 57 79 81 90 99 99 102 107 112 121 128 128 127 130 139 137 150 143 168 176 Average Rating 74 | 4 8 10 19 21 23 24 34 38 39 39 44 53 52 56 57 53 50 70 78 81 94 99 98 100 106 116 122 125 123 127 135 137 139 134 162 156 On Entrance 74 | . 6 10 11 21 22 24 26 48 39 42 40 43 55 54 59 59 45 57 78 81 90 99 99 96 105 112 116 128 123 125 128 137 137 144 139 160 Avg Prop Armor Cover (%) 3 | . . . . . . . . . . . . . . . . . . . . . . . . . . . . 3 8 . . . . . . . Naked Turns . | . . . . . . . . . . . . . . . . . . . . . . . . . . . . . . . . . . . . . Heaviest Build 184 | 13 33 56 69 69 69 69 123 124 120 120 119 124 124 142 134 139 146 148 150 160 160 159 159 168 164 168 169 172 176 170 165 159 169 168 184 181 Greatest Support 235 | 40 40 40 60 63 63 63 69 69 66 69 89 93 93 93 93 93 80 140 140 150 150 150 150 150 150 155 178 178 178 173 183 160 183 178 235 230 Greatest Overweight (x) 6 | . . 1 1 1 1 1 3 1 1 2 1 1 1 1 1 6 3 1 1 1 1 1 1 1 1 1 1 1 1 . . . 1 1 . . Average Overweight (x) . | . . . . 1 1 . 1 1 1 1 1 1 1 1 1 1 1 1 1 . 1 1 . . . . . . . . . . . . . . Largest Inventory Capacity 25 | 8 15 20 20 20 20 20 25 25 25 25 25 25 25 25 25 25 25 25 25 25 25 25 25 25 25 25 25 25 25 25 25 25 25 25 25 25 Average Capacity 23 | 6 14 17 20 20 20 20 23 25 25 25 25 25 25 25 25 25 25 25 25 25 25 25 25 25 25 25 25 25 25 25 25 25 25 25 25 25 Most Carried 25 | 2 15 17 20 20 20 20 25 25 25 25 21 22 23 25 25 25 24 25 25 25 25 23 25 25 25 25 25 25 25 25 25 23 25 25 25 25 Average Carried 21 | . 7 15 19 19 19 19 20 21 23 23 20 19 20 24 24 23 22 24 24 24 23 23 23 23 24 23 24 24 23 23 24 23 22 23 24 22 Final Capacity 25 | 8 15 20 20 20 20 20 25 25 25 25 25 25 25 25 25 25 25 25 25 25 25 25 25 25 25 25 25 25 25 25 25 25 25 25 25 25 Final Carried 25 | 2 13 17 20 19 20 19 22 24 22 22 20 20 23 25 25 24 23 25 25 24 23 23 23 25 25 25 25 25 24 23 23 23 21 25 24 19 Class Distribution -------------------- 62% | Botlord-Mutant 24% | Mutant 7% | Bothacker-Mutant Dominant Class ---------------- Mutant | -10/Materials Mutant | -10/Mines Mutant | -9/Materials Mutant | -9/Mines Commander-Mutant | -9/Exiles Mutant | -8/Mines Mutant | -8/Materials Mutant | -8/Garrison Bothacker-Mutant | -8/Materials Bothacker-Mutant | -8/Garrison Bothacker-Mutant | -7/Factory Bothacker-Mutant | -7/Garrison Botlord-Mutant | -7/Factory Botlord-Mutant | -7/Garrison Botlord-Mutant | -7/Factory Botlord-Mutant | -7/Garrison Botlord-Mutant | -6/Factory Botlord-Mutant | -6/Waste Botlord-Mutant | -6/Factory Botlord-Mutant | -6/Garrison Botlord-Mutant | -5/Factory Botlord-Mutant | -5/Waste Botlord-Mutant | -5/Factory Botlord-Mutant | -5/Garrison Botlord-Mutant | -5/Factory Botlord-Mutant | -5/Garrison Botlord-Mutant | -4/Factory Botlord-Mutant | -4/Garrison Botlord-Mutant | -4/Factory Botlord-Mutant | -4/Extension Botlord-Mutant | -4/Cetus Botlord-Mutant | -4/Archives Botlord-Mutant | -4/Hub_04(d) Botlord-Mutant | -4/Garrison Botlord-Mutant | -3/Research Botlord-Mutant | -3/Quarantine Resources | -11 -10 -10 -9 -9 -9 -8 -8 -8 -8 -8 -7 -7 -7 -7 -7 -7 -6 -6 -6 -6 -5 -5 -5 -5 -5 -5 -4 -4 -4 -4 -4 -4 -4 -4 -3 -3 ----------- Run | Yrd Mat Min Mat Min Exi Min Mat Gar Mat Gar Fac Gar Fac Gar Fac Gar Fac Was Fac Gar Fac Was Fac Gar Fac Gar Fac Gar Fac Ext Cet Arc Hub Gar Res Qua Matter Collected 11576 | 196 393 130 348 122 . 82 387 375 245 347 181 310 42 648 120 832 140 70 . 664 124 . 394 764 488 684 170 666 473 190 142 . 368 884 280 317 Remotely . | . . . . . . . . . . . . . . . . . . . . . . . . . . . . . . . . . . . . . Salvage Created 19092 | . 671 30 1267 276 . 162 2803 662 590 491 478 321 124 280 . 789 59 218 . 991 . . 303 690 412 750 301 1269 1369 677 60 34 1348 681 35 951 Parts 917 | . 32 . 78 19 . 8 127 41 32 26 27 13 6 13 . 69 3 1 . 30 . . 10 25 14 27 11 59 68 24 4 . 46 36 3 65 Haulers Intercepted 13 | . 2 . 5 . . . 4 . 1 . . . . . . . . . . . . . 1 . . . . . . . . . . . . . Recyclers Shooed 7 | . 1 . 1 . . . 1 . . . . . . . . . . . . . . . 1 . 1 . . . 2 . . . . . . . Parts Field Recycled . | . . . . . . . . . . . . . . . . . . . . . . . . . . . . . . . . . . . . . Retrieved Matter . | . . . . . . . . . . . . . . . . . . . . . . . . . . . . . . . . . . . . . Parts Self-Destructed . | . . . . . . . . . . . . . . . . . . . . . . . . . . . . . . . . . . . . . Prevented . | . . . . . . . . . . . . . . . . . . . . . . . . . . . . . . . . . . . . . Parts Restored 1 | . . . . . . . . 1 . . . . . . . . . . . . . . . . . . . . . . . . . . . . Broken 1 | . . . . . . . . 1 . . . . . . . . . . . . . . . . . . . . . . . . . . . . Kills | -11 -10 -10 -9 -9 -9 -8 -8 -8 -8 -8 -7 -7 -7 -7 -7 -7 -6 -6 -6 -6 -5 -5 -5 -5 -5 -5 -4 -4 -4 -4 -4 -4 -4 -4 -3 -3 ------- Run | Yrd Mat Min Mat Min Exi Min Mat Gar Mat Gar Fac Gar Fac Gar Fac Gar Fac Was Fac Gar Fac Was Fac Gar Fac Gar Fac Gar Fac Ext Cet Arc Hub Gar Res Qua Combat Hostiles Destroyed 347 | . 12 4 23 14 . 2 48 22 8 11 15 7 3 7 . 32 1 . . 9 . . 4 12 7 12 4 23 18 8 1 . 14 13 . 13 Melee 3 | . . . . 1 . . . . . . . . . . . . . . . . . . 1 . . . . . . . . . . 1 . . Guns 48 | . 12 . 2 . . . 21 1 . . . 1 . 1 . 7 . . . . . . . . . . . . . . . . . 3 . . Cannons 202 | . . 4 20 7 . 2 22 11 8 9 9 5 2 4 . 7 1 . . 8 . . 3 9 6 9 4 14 15 5 1 . 9 5 . 3 AOE 55 | . . . . 6 . . 3 10 . . 5 1 . 2 . 18 . . . . . . . 1 . . . 3 1 . . . 2 3 . . Classes Destroyed 22 | . 5 1 6 1 . . 3 2 . . . . . . . 3 . . . 1 . . . . . . . . . . . . . . . . Worker 13 | . 1 . . . . . 2 . . . . . . . . . . . . . . . 1 . . . 1 . 3 . . . 4 . 1 . Builder 12 | . . . 1 1 . 1 2 . 1 . . . 1 . . . . . . . . . . . . . . . 2 . . . 2 . 1 . Tunneler 3 | . . . 1 1 . 1 . . . . . . . . . . . . . . . . . . . . . . . . . . . . . . Hauler 13 | . 2 . 5 . . . 4 . 1 . . . . . . . . . . . . . 1 . . . . . . . . . . . . . Recycler 7 | . 2 . . . . 1 3 . 1 . . . . . . . . . . . . . . . . . . . . . . . . . . . Mechanic 1 | . . . . . . . 1 . . . . . . . . . . . . . . . . . . . . . . . . . . . . . Operator 3 | . . . 2 . . . . . . . . . . . . . . . . . . . . . . . . 1 . . . . . . . . Watcher 9 | . . . 2 . . . 4 . . . . . . . . . . . . . . . 1 . . . . . 1 . . . 1 . . . Swarmer 73 | . 5 . 2 8 . . 7 6 . 1 10 2 . 3 . 13 . . . . . . 1 1 1 . . 8 . . . . . 5 . . Cutter 8 | . . . . . . . . . . . . . . . . 3 . . . . . . . 2 . . . . 1 . . . . 2 . . Saboteur 7 | . . . . . . . . . . . . . . . . 7 . . . . . . . . . . . . . . . . . . . . Grunt 101 | . 7 . 13 4 . 1 27 9 4 . 2 4 1 3 . 3 . . . 1 . . 1 3 . 4 2 5 2 2 . . 2 . . 1 Brawler 14 | . . . 1 1 . 1 1 . . . . 1 . . . . . . . 3 . . . . . 1 . 2 . 2 . . 1 . . . Duelist 7 | . . . . 1 . . 1 2 . 1 . . . . . 1 . . . . . . . . . . . . . . . . 1 . . . Sentry 50 | . . . 7 . . . 9 2 4 2 2 1 . . . . . . . 1 . . . 1 2 2 1 7 4 3 . . 1 1 . . Demolisher 1 | . . . . . . . . . . . . . . . . 1 . . . . . . . . . . . . . . . . . . . . Specialist 7 | . . . . . . . 2 . . . . . . . . 1 . . . 1 . . . 2 . . . . 1 . . . . . . . Hunter 19 | . . . . . . . . 1 . 1 . . . . . . 1 . . 3 . . . 2 2 . . . 4 . . . 2 2 . 1 Programmer 42 | . . . . . . . . 2 . 6 1 . 2 2 . 5 . . . . . . 2 1 2 5 1 1 6 . . . 1 2 . 3 Heavy 2 | . . . . . . . 1 . . . . . . . . . . . . . . . . . . . . . 1 . . . . . . . Behemoth 4 | . . . . . . . . . . . . . . . . . . . . 1 . . . 1 . . . . . 1 . . . 1 . . Cetus Guard 1 | . . . . . . . . . . . . . . . . . . . . . . . . . . . . . . . 1 . . . . . Quarantine Guard 8 | . . . . . . . . . . . . . . . . . . . . . . . . . . . . . . . . . . . . 8 Enhanced Grunt 3 | . . . . . . . . . . . . . . . . . . . . . . . . . . . . . . . . . 3 . . . Lightning 6 | . . . . . . . . . . . . . . . . . . . . . . . . . . . . . . . . . 6 . . . Assembled 4 | . . 4 . . . . . . . . . . . . . . . . . . . . . . . . . . . . . . . . . . Thug 2 | . . . . . . . . . . . . . . . . . . . . . . . . . . . . . . . . . 2 . . . Savage 1 | . . . . . . . . . . . . . . . . . . . . . . . . . . . . . . . . . 1 . . . Best Kill Streak 10 | . 4 2 3 6 . 2 10 8 3 6 8 2 2 3 . 7 1 . . 2 . . 3 4 2 2 4 4 3 3 1 . 8 4 1 3 Combat Bots Only 8 | . 4 2 3 6 . 2 6 8 3 6 8 2 2 3 . 7 1 . . 2 . . 2 4 2 2 3 3 2 3 1 . 5 4 . 3 Max Kills in Single Turn 6 | . 1 1 2 2 . 1 4 2 2 1 3 1 1 2 . 4 1 . . 1 . . 1 1 1 1 1 4 2 1 1 . 6 3 1 1 Gunslinging . | . . . . . . . . . . . . . . . . . . . . . . . . . . . . . . . . . . . . . Exploded 4 | . . . . 2 . . 2 2 . . 3 1 . 2 . 4 . . . . . . . 1 . . . 3 1 . . . 1 3 . . Melee 1 | . . . . 1 . . . . . . . . . . . . . . . . . . 1 . . . . . . . . . . 1 . . Uniques/NPCs Destroyed . | . . . . . . . . . . . . . . . . . . . . . . . . . . . . . . . . . . . . . Combat | -11 -10 -10 -9 -9 -9 -8 -8 -8 -8 -8 -7 -7 -7 -7 -7 -7 -6 -6 -6 -6 -5 -5 -5 -5 -5 -5 -4 -4 -4 -4 -4 -4 -4 -4 -3 -3 -------- Run | Yrd Mat Min Mat Min Exi Min Mat Gar Mat Gar Fac Gar Fac Gar Fac Gar Fac Was Fac Gar Fac Was Fac Gar Fac Gar Fac Gar Fac Ext Cet Arc Hub Gar Res Qua Hostile Shots Fired 2847 | . 69 4 78 56 . 13 278 138 34 69 64 50 21 79 29 187 33 . . 145 . . 48 117 69 118 12 111 194 54 36 . 193 132 17 399 Missed 818 | . 18 1 26 14 . 3 104 27 8 16 23 17 6 16 16 60 11 . . 33 . . 13 26 17 37 8 38 69 23 11 . 52 35 6 84 Hits 2029 | . 51 3 52 42 . 10 174 111 26 53 41 33 15 63 13 127 22 . . 112 . . 35 91 52 81 4 73 125 31 25 . 141 97 11 315 Melee 67 | . . . . 6 . 1 . 14 . 5 . . . 2 . 19 . . . 2 . . . 10 . . . 2 . 1 . . . 5 . . Projectile 1962 | . 51 3 52 36 . 9 174 97 26 48 41 33 15 61 13 108 22 . . 110 . . 35 81 52 81 4 71 125 30 25 . 141 92 11 315 AOE 4 | . . . . . . . . . . . . . . . . . . . . . . . . 1 . . . . 1 . . . . 2 . . Critical Strikes 108 | . . . 1 3 . . 8 6 . 3 . . 1 . . 10 . . . 4 . . 4 7 2 4 . 3 7 . 3 . 23 10 . 9 Actively Blocked 3 | . . . . . . . . . . . . . . . . . . . . . . . . . . 3 . . . . . . . . . . Part Disruptions 7 | . . . . . . . . . . . . . . . . . . . . 1 . . 1 2 . . . . 2 . . . . . . 1 Damage Taken 27736 | . 565 67 649 601 . 161 2458 1340 413 872 771 570 234 650 127 1478 196 . . 1177 20 . 516 1202 826 992 43 819 1530 336 423 . 2845 1697 189 3969 Core 2326 | . 113 . 59 33 . 23 238 78 66 43 91 34 46 52 10 115 47 . . 130 . . 7 174 12 50 . 30 132 24 . . 392 57 . 270 Absorbed by Shields 9814 | . . . . . . . 170 690 . . . . . . . 380 75 . . 755 20 . 142 926 338 865 46 859 884 355 249 . 1150 512 198 1200 Reduced by Siege Mode 422 | . . . . . . . . . . . . . . . . . . . . . . . . . . 10 . 32 . . . . 168 76 . 136 Redirected to Shielding 28 | . 25 3 . . . . . . . . . . . . . . . . . . . . . . . . . . . . . . . . . . Ignored by Resistances 1255 | . . . . . . . . . . . . . . 82 4 102 . . . . . . . . . . . . . . . . 867 . . 200 Regen/Repaired (Parts) 3145 | . 138 . 113 . . . . . 265 306 469 . . . . . 58 . . . 36 . . . 659 406 220 . 226 . . . . . 249 . Core Remaining (%) 61 | 100 . 54 . . . 71 . . . 22 . . . . . 50 . . . 79 . . . . . 75 . . . . . . . 44 . . Volleys Fired 1897 | . 69 9 80 21 . 5 98 51 41 52 37 44 23 64 17 120 18 8 . 131 21 8 37 107 45 74 25 106 83 52 26 16 133 133 32 111 Largest 2 | . 2 2 2 2 . 2 2 2 2 2 2 2 2 2 1 2 2 2 . 2 1 1 2 2 2 2 2 2 2 2 1 1 1 2 1 2 Hottest 240 | . 70 60 120 120 . 120 160 160 160 160 160 174 174 184 94 184 180 180 . 180 5 90 180 226 233 240 240 240 240 240 120 120 120 137 120 188 Shots Fired 2768 | . 138 18 160 36 . 10 290 98 71 76 65 65 31 88 19 166 21 16 . 162 21 9 45 145 63 109 33 150 131 73 26 14 131 131 32 125 Gun 417 | . 138 . 6 . . . 98 4 . . . 25 9 34 6 39 . . . . . . . . . . . . . . . . . 46 2 10 Cannon 1839 | . . 18 154 31 . 9 188 83 60 64 56 24 11 23 . 89 8 16 . 95 . 2 27 106 42 84 20 113 114 69 25 14 107 60 19 108 Launcher 47 | . . . . 5 . 1 4 11 . . 3 3 . 1 . 11 . . . . . . . . . . . 1 . . . . 6 1 . . Special 465 | . . . . . . . . . 11 12 6 13 11 30 13 27 13 . . 67 21 7 18 39 21 25 13 36 17 4 1 . 18 24 11 7 Kinetic 180 | . 114 18 32 . . . . . . . . . . . . . . . . . . . . . . . . . . . . . . . . 16 Thermal 1935 | . 24 . 128 31 . 9 286 87 60 64 56 49 20 57 6 128 8 16 . 95 . 2 27 106 42 84 20 102 100 52 25 14 92 77 20 48 Explosive 47 | . . . . 5 . 1 4 11 . . 3 3 . 1 . 11 . . . . . . . . . . . 1 . . . . 6 1 . . Electromagnetic 141 | . . . . . . . . . . . . . . . . . . . . . . . . . . . . 11 14 17 . . 15 29 1 54 Robot Hit Streak 28 | . 17 5 9 6 . 8 28 11 9 14 6 8 5 8 5 11 3 11 . 24 8 5 8 21 14 14 14 22 11 10 5 6 16 11 6 11 Robot Miss Streak 11 | . 5 3 6 3 . 1 2 4 2 3 4 3 2 4 3 11 2 1 . 4 1 1 3 3 3 4 1 2 4 3 2 1 4 7 6 3 Penetration Max . | . . . . . . . . . . . . . . . . . . . . . . . . . . . . . . . . . . . . . Secondary Targets . | . . . . . . . . . . . . . . . . . . . . . . . . . . . . . . . . . . . . . Capacitor 373 | . . . . . . . . . . . . . . . . . . . . . . . . . . . . . . 29 25 14 107 105 21 72 Autonomous 104 | . . . . . . . 98 6 . . . . . . . . . . . . . . . . . . . . . . . . . . . . Shots Hit Robots 1571 | . 84 9 84 16 . 8 206 45 45 40 38 28 19 36 9 58 10 14 . 119 17 7 26 61 43 58 21 89 84 46 15 2 77 63 17 77 Core Hits 597 | . 33 5 36 16 . 4 90 34 14 10 17 16 2 9 . 39 2 1 . 27 . . 6 20 8 14 6 31 30 16 8 2 55 21 5 20 Critical Kills 20 | . 1 . 1 . . . . . . 1 1 . . . . . . 1 . 1 . . . 2 . 3 . 3 1 2 . 1 . 1 . 1 Critical Parts Destroyed . | . . . . . . . . . . . . . . . . . . . . . . . . . . . . . . . . . . . . . Critical Strikes 24 | . 1 . 3 . . . . . . 1 1 . . . . . . 1 . 1 . . . 2 . 3 . 3 1 2 . 1 1 2 . 1 Meltdown 19 | . . . 1 . . . . . . 1 1 . . . . . . 1 . 1 . . . 2 . 3 . 3 1 2 . 1 . 1 . 1 Destroy 1 | . 1 . . . . . . . . . . . . . . . . . . . . . . . . . . . . . . . . . . . Blast 2 | . . . 2 . . . . . . . . . . . . . . . . . . . . . . . . . . . . . . . . . Corrupt 2 | . . . . . . . . . . . . . . . . . . . . . . . . . . . . . . . . . 1 1 . . Melee Attacks . | . . . . . . . . . . . . . . . . . . . . . . . . . . . . . . . . . . . . . Impact . | . . . . . . . . . . . . . . . . . . . . . . . . . . . . . . . . . . . . . Slashing . | . . . . . . . . . . . . . . . . . . . . . . . . . . . . . . . . . . . . . Piercing . | . . . . . . . . . . . . . . . . . . . . . . . . . . . . . . . . . . . . . Sneak Attacks . | . . . . . . . . . . . . . . . . . . . . . . . . . . . . . . . . . . . . . Combat Hostiles . | . . . . . . . . . . . . . . . . . . . . . . . . . . . . . . . . . . . . . Follow-up Attacks . | . . . . . . . . . . . . . . . . . . . . . . . . . . . . . . . . . . . . . Damage Inflicted 49900 | . 893 143 1914 859 . 198 5916 2251 992 984 1289 746 349 628 73 2984 74 446 . 2268 . . 569 1733 1243 1823 578 3125 3797 1982 735 115 5257 2386 595 2955 Guns 5297 | . 883 . 49 . . . 2320 126 . . . 259 123 205 57 673 . . . . . . . . . . . . . . . . . 444 . 158 Cannons 35391 | . . 143 1838 346 . 183 2918 837 974 984 923 338 204 278 . 738 64 446 . 2247 . . 500 1733 1181 1823 567 2679 3419 1908 735 115 2666 1502 305 2797 Explosions 8406 | . . . . 486 . . 627 1284 . . 366 149 . 145 . 1561 . . . . . . . . . . . 446 229 . . . 2477 382 254 . Melee . | . . . . . . . . . . . . . . . . . . . . . . . . . . . . . . . . . . . . . Ramming 806 | . 10 . 27 27 . 15 51 4 18 . . . 22 . 16 12 10 . . 21 . . 69 . 62 . 11 . 149 74 . . 114 58 36 . Kinetic 1600 | . 722 143 354 . . . . . . . . . . . . . . . . . . . . . . . . . . . . . . . . 381 Thermal 35955 | . 161 . 1533 346 . 183 5238 963 974 984 923 597 327 483 57 1411 64 446 . 2247 . . 500 1733 1181 1823 567 2327 3272 1482 735 115 2225 1496 305 1257 Explosive 7320 | . . . . 486 . . 627 1284 . . 366 149 . 145 . 1561 . . . . . . . . . . . 446 . . . . 1620 382 254 . Electromagnetic 4219 | . . . . . . . . . . . . . . . . . . . . . . . . . . . . 352 376 426 . . 1298 450 . 1317 Impact . | . . . . . . . . . . . . . . . . . . . . . . . . . . . . . . . . . . . . . Slashing . | . . . . . . . . . . . . . . . . . . . . . . . . . . . . . . . . . . . . . Piercing . | . . . . . . . . . . . . . . . . . . . . . . . . . . . . . . . . . . . . . Highest Corruption 100 | . . . . . . 4 . . . 7 1 1 3 5 5 9 . . . 3 . 25 25 27 30 37 . . 4 5 14 14 42 46 7 100 Average Corruption 15 | . . . . . . 4 . . . 6 1 1 1 4 5 6 . . . 3 . 16 25 25 27 34 . . 2 4 12 14 21 45 6 23 Corruption Purged . | . . . . . . . . . . . . . . . . . . . . . . . . . . . . . . . . . . . . . Corruption Blocked . | . . . . . . . . . . . . . . . . . . . . . . . . . . . . . . . . . . . . . Effects 836 | . . . . . . 16 . . . 30 2 6 7 38 12 63 . . . 15 . 11 41 143 59 109 . . 28 28 21 7 45 97 13 45 Message Errors 175 | . . . . . . 3 . . . 3 1 . 3 8 4 10 . . . 5 . 1 8 30 12 24 . . 6 8 5 1 8 18 5 12 Matter Fused 214 | . . . . . . 6 . . . 10 . 2 1 11 . 14 . . . 3 . 4 7 29 17 33 . . 9 6 7 . 19 25 4 7 Heat Flow Errors 95 | . . . . . . 1 . . . 1 1 1 . 3 1 6 . . . 1 . 2 4 19 10 9 . . 2 4 1 2 4 14 1 8 Energy Discharges 86 | . . . . . . 1 . . . 4 . . . 7 1 8 . . . 2 . 2 4 14 5 12 . . 4 4 2 1 4 9 . 2 Parts Rejected 7 | . . . . . . . . . . 1 . . . . . . . . . 1 . 1 2 1 . . . . . . 1 . . . . . Parts Fused 10 | . . . . . . . . . . 2 . . . 1 . . . . . . . . 1 1 1 1 . . 1 . . . . . . 2 Data Loss (minor) 95 | . . . . . . 2 . . . 1 . 2 2 2 1 10 . . . 2 . . 3 24 7 10 . . 4 4 2 1 2 12 . 4 Data Loss (major) 28 | . . . . . . 1 . . . 2 . . . 4 1 3 . . . . . . . 5 1 3 . . . 1 1 . 2 1 2 1 Misfires 43 | . . . . . . 1 . . . 3 . . . 2 2 7 . . . . . 1 4 7 1 5 . . 1 1 . . 1 5 . 2 Alerts 20 | . . . . . . 1 . . . 2 . 1 . . 2 2 . . . 1 . . 1 1 2 3 . . . . . . . 2 1 1 Misdirections 15 | . . . . . . . . . . . . . . . . . . . . . . . 4 1 . 2 . . . . 2 . 2 3 . 1 Weapon Failures 48 | . . . . . . . . . . 1 . . 1 . . 3 . . . . . . 3 11 3 7 . . 1 . . 2 3 8 . 5 Overload Shots . | . . . . . . . . . . . . . . . . . . . . . . . . . . . . . . . . . . . . . Overflow Damage 1398 | . . . 6 67 . 2 36 22 11 27 66 22 . . . 81 . 2 . 6 . . 52 54 115 34 41 66 364 . . . 188 40 20 76 Projectiles 959 | . . . 6 50 . . 11 16 11 27 9 22 . . . 25 . 2 . . . . 39 54 101 34 41 66 230 . . . 139 . . 76 Explosions 402 | . . . . 17 . 2 25 6 . . 57 . . . . 56 . . . . . . . . . . . . 130 . . . 49 40 20 . Melee 37 | . . . . . . . . . . . . . . . . . . . . 6 . . 13 . 14 . . . 4 . . . . . . . Knockbacks 7 | . . 1 . . . . 1 . . . . . 2 . . . . . . . . . . . . . 1 . 2 . . . . . . . Impact 6 | . . . . . . . 1 . . . . . 2 . . . . . . . . . . . . . 1 . 2 . . . . . . . Kinetic 1 | . . 1 . . . . . . . . . . . . . . . . . . . . . . . . . . . . . . . . . . Secondary . | . . . . . . . . . . . . . . . . . . . . . . . . . . . . . . . . . . . . . Self-Inflicted Damage 1004 | . . . . 75 . 31 . 202 . . . 50 . . . 50 . . . . . . . . . . . 60 21 . . . 394 . 121 . Shots 20 | . . . . 2 . 1 . 6 . . . 1 . . . 1 . . . . . . . . . . . 1 1 . . . 6 . 1 . Rammed 63 | . 2 . 5 2 . 2 3 1 3 . . . 3 . 2 1 1 . . 2 . . 4 . 7 . 1 . 9 3 . . 7 3 2 . Targets Rammed 75 | . 2 . 6 4 . 4 4 1 3 . . . 4 . 2 1 1 . . 2 . . 6 . 7 . 1 . 11 3 . . 7 4 2 . Kicked . | . . . . . . . . . . . . . . . . . . . . . . . . . . . . . . . . . . . . . Crushed 12 | . . . 1 2 . 2 1 . . . . . 1 . . . . . . . . . 2 . . . . . 2 . . . . 1 . . Highest Temperature 587 | . 257 30 213 372 . 263 279 433 396 516 231 234 162 315 198 356 414 399 . 387 . . . 174 441 200 . 266 352 378 216 160 587 447 265 517 Average Temperature 104 | . 44 11 56 154 . 132 71 160 133 138 89 72 60 91 61 99 161 193 . 119 . . . 76 155 79 . 93 121 151 116 74 213 116 110 130 Received Heat Transfer 3872 | . 231 20 258 78 . 27 719 327 180 81 63 117 72 174 51 168 27 . . 97 . . 63 184 60 128 4 131 141 32 17 . 290 120 4 8 Effects 39 | . 1 . . . . . 1 9 1 10 1 . . 1 . 4 1 . . . . . . . 3 . . . . 2 . . 1 1 1 2 Shutdowns 8 | . . . . . . . . 2 . 1 . . . . . 1 1 . . . . . . . . . . . . . . . . 1 . 2 Energy Bleed 6 | . 1 . . . . . 1 2 . . . . . . . 1 . . . . . . . . . . . . . . . . . . 1 . Interference 11 | . . . . . . . . 4 1 2 1 . . 1 . 2 . . . . . . . . . . . . . . . . . . . . Matter Decay 2 | . . . . . . . . . . 1 . . . . . . . . . . . . . . . . . . . 1 . . . . . . Short Circuit 2 | . . . . . . . . 1 . 1 . . . . . . . . . . . . . . . . . . . . . . . . . . Damage (minor) 1 | . . . . . . . . . . . . . . . . . . . . . . . . . . . . . . 1 . . . . . . Damage (major) 8 | . . . . . . . . . . 5 . . . . . . . . . . . . . . 3 . . . . . . . . . . . Damage (core) 1 | . . . . . . . . . . . . . . . . . . . . . . . . . . . . . . . . . 1 . . . Siege Activations 9 | . . . . . . . . . . . . . . . . . . . . . . . . . . 1 . 2 . . . . 2 1 . 3 Total Turns 271 | . . . . . . . . . . . . . . . . . . . . . . . . . . 21 . 55 . . . . 89 68 . 38 Longest Duration 68 | . . . . . . . . . . . . . . . . . . . . . . . . . . 21 . 40 . . . . 56 68 . 14 Martial Activations . | . . . . . . . . . . . . . . . . . . . . . . . . . . . . . . . . . . . . . Shielding Activations . | . . . . . . . . . . . . . . . . . . . . . . . . . . . . . . . . . . . . . Robots Disrupted . | . . . . . . . . . . . . . . . . . . . . . . . . . . . . . . . . . . . . . Combat Hostiles . | . . . . . . . . . . . . . . . . . . . . . . . . . . . . . . . . . . . . . Robots Corrupted 22 | . . . . . . . . . . . . . . . . . . . . . . . . . 1 . . 3 1 1 . . 7 . . 9 Combat Hostiles 17 | . . . . . . . . . . . . . . . . . . . . . . . . . 1 . . 3 . 1 . . 3 . . 9 Parts Fried 45 | . . . . 2 . . . . . . . . . . . . . . . . . . . . 2 . . 1 1 1 . . 11 2 . 25 Impact Corruptions 5 | . . . . . . . . . . . . . . . . . . . . 1 . . 2 . 1 . . . 1 . . . . . . . Robots Melted 24 | . . . 1 . . . 2 . . 2 1 . 1 . . . . 1 . 1 . . . 2 . 3 . 3 2 2 . 1 . 1 . 1 Combat Hostiles 23 | . . . 1 . . . 2 . . 2 1 . 1 . . . . 1 . 1 . . . 2 . 3 . 3 2 2 . . . 1 . 1 Parts Melted 103 | . 2 . 5 1 . 1 14 . 5 5 4 1 4 1 . 6 1 1 . 15 . . 1 2 2 2 1 5 6 7 . 4 . 2 . 5 Heat Transferred 42896 | . 481 . 2479 555 . 296 7713 1748 1900 1750 1750 983 498 709 74 1802 100 700 . 3500 . . 520 1692 999 1443 444 1998 2579 1257 629 111 1924 1443 259 560 Parts Sabotaged 4 | . . . . . . . . . . . . . . . . 4 . . . . . . . . . . . . . . . . . . . . Parts Stolen . | . . . . . . . . . . . . . . . . . . . . . . . . . . . . . . . . . . . . . Parts Stripped . | . . . . . . . . . . . . . . . . . . . . . . . . . . . . . . . . . . . . . Power Chain Reactions . | . . . . . . . . . . . . . . . . . . . . . . . . . . . . . . . . . . . . . Alert | -11 -10 -10 -9 -9 -9 -8 -8 -8 -8 -8 -7 -7 -7 -7 -7 -7 -6 -6 -6 -6 -5 -5 -5 -5 -5 -5 -4 -4 -4 -4 -4 -4 -4 -4 -3 -3 ------- Run | Yrd Mat Min Mat Min Exi Min Mat Gar Mat Gar Fac Gar Fac Gar Fac Gar Fac Was Fac Gar Fac Was Fac Gar Fac Gar Fac Gar Fac Ext Cet Arc Hub Gar Res Qua Maximum Alert Level 5 | . . . 2 1 . . 2 3 2 2 2 3 1 3 2 5 3 1 . 4 3 1 . 4 3 3 2 2 1 . . . 2 3 2 . Low Security (%) 39 | 100 100 100 54 24 . 100 21 . 24 36 11 14 76 22 38 8 . 77 100 11 . 61 100 23 18 13 64 16 49 100 100 100 32 . 64 100 Level 1 20 | . . . 19 75 . . 34 10 65 39 58 18 23 9 34 1 . 22 . 7 . 38 . 21 . 36 . 59 50 . . . 34 . 7 . Level 2 20 | . . . 25 . . . 44 23 9 23 29 48 . 33 27 9 . . . 16 33 . . 8 75 18 34 23 . . . . 32 69 28 . Level 3 14 | . . . . . . . . 66 . . . 17 . 34 . 33 100 . . 40 66 . . 20 6 31 . . . . . . . 30 . . Level 4 4 | . . . . . . . . . . . . . . . . 27 . . . 23 . . . 25 . . . . . . . . . . . . Level 5 1 | . . . . . . . . . . . . . . . . 19 . . . . . . . . . . . . . . . . . . . . High Security . | . . . . . . . . . . . . . . . . . . . . . . . . . . . . . . . . . . . . . Max Security . | . . . . . . . . . . . . . . . . . . . . . . . . . . . . . . . . . . . . . Peak Influence 1857 | . 88 24 474 358 . 144 555 1061 519 514 607 732 384 858 450 1857 1065 305 30 1481 970 292 119 1537 730 1026 538 648 340 161 111 34 636 910 527 164 Initial 974 | . . 24 . 165 . . . 351 516 13 269 117 384 28 450 79 974 305 . 14 777 292 . 67 730 88 538 52 340 132 28 16 1 431 511 . Average 391 | . 35 . 184 248 . 24 304 787 248 262 340 509 81 540 245 1096 973 102 3 782 779 142 32 667 476 517 193 308 203 82 55 18 282 630 163 45 Influence Increases 21664 | . 425 . 847 395 . 358 1445 770 320 551 638 655 120 1060 262 2008 159 1 30 1667 411 4 478 1950 489 1078 153 1171 623 533 265 28 1348 749 210 463 Destroy 0b10 Robot/C 10115 | . 240 . 460 280 . 220 960 440 180 360 420 400 60 520 120 780 120 . . 560 140 . 220 700 260 420 80 540 315 285 105 . 405 315 15 195 Destroy 0b10 Robot/NC 369 | . 25 . 55 10 . 15 80 . 20 . . . 5 . 5 5 . . . 15 5 . 15 . . . 5 5 28 . 4 4 44 4 20 . Destroy Leader 1582 | . 64 . 164 50 . 40 236 20 54 30 80 30 20 40 20 50 10 . . 30 30 . 64 30 70 50 30 20 98 32 . . 92 40 8 80 Allied During Kill 1618 | . . . . 1 . 58 . . 6 45 46 44 1 105 34 19 23 . . 114 175 . 71 120 37 42 3 72 26 99 102 4 323 41 7 . Successful Hack 372 | . 6 . 18 . . . 2 12 11 26 10 8 . 4 7 12 . . . 7 2 . . 21 44 23 10 14 28 15 . . 12 14 48 18 Select Force Hacks 240 | . 60 . 60 . . . . . . . . . 30 . 30 . . . 30 . . . . . 30 . . . . . . . . . . . Disable Machine 813 | . . . 30 . . . 60 30 30 . 30 . . 15 30 . . . . . 45 . 60 45 15 . 15 . 36 60 12 12 120 . 36 132 Anti-Garrison Action 4077 | . . . . . . . . 200 . 50 . 100 . 300 . 800 . . . 800 . . . 800 . 450 . 350 . . . . . 227 . . Destroy Structure 1869 | . . . 15 39 . 10 47 68 19 40 22 43 4 76 1 192 6 1 . 81 14 4 18 174 18 93 10 140 80 42 42 8 352 108 76 26 Partial Spotted 30 | . 15 . . . . . . . . . . . . . . . . . . . . . . . . . . 15 . . . . . . . . Lose Combat Pursuer 579 | . 15 . 45 15 . 15 60 . . . 30 30 . . 15 150 . . . 60 . . 30 60 15 . . 15 12 . . . . . . 12 Influence Decreases 21664 | . 362 63 421 697 124 357 905 250 1361 57 984 91 812 242 1006 265 1143 874 10 206 1056 840 381 655 1754 179 1104 598 1001 753 273 66 736 455 1120 463 Entered New Map 7294 | . . 39 . 261 124 . 1 190 545 7 245 51 348 12 408 35 883 568 . 6 704 544 . 30 662 39 488 23 308 138 22 26 3 185 399 . Time Decay 7260 | . 362 24 421 416 . 267 533 . 378 . 294 . 190 . 238 . 180 306 10 . 342 136 254 . 482 . 178 . 583 466 198 40 343 . 331 288 Lost Part 729 | . . . . 20 . 10 71 60 . 10 10 20 20 20 . 100 . . . 30 . . . 10 . . . . 30 . 13 . 70 60 . 175 Lost Ally 2227 | . . . . . . 80 . . 20 40 60 20 . 210 60 130 80 . . 170 10 160 127 240 60 140 . 200 80 40 40 . 20 210 30 . Purge Threat 4154 | . . . . . . . 300 . 418 . 375 . 254 . 300 . . . . . . . . 375 550 . 438 375 . 109 . . 300 . 360 . Squads Dispatched 68 | . 4 . 5 . . . 9 . 3 . 6 . 3 . 4 . . . 1 . 2 . 3 . 6 . . . 7 1 . . 7 . 3 4 Investigation 17 | . 2 . 4 . . . 2 . . . . . 2 . 1 . . . 1 . . . . . 2 . . . 2 . . . . . . 1 Extermination 11 | . . . . . . . . . . . 2 . 1 . . . . . . . 1 . 1 . 1 . . . 3 . . . 1 . . 1 Reinforcement 22 | . 2 . 1 . . . 2 . . . 1 . . . 1 . . . . . . . 2 . 3 . . . 2 1 . . 2 . 3 2 Assault 3 | . . . . . . . 1 . . . . . . . . . . . . . 1 . . . . . . . . . . . 1 . . . Garrison 15 | . . . . . . . 4 . 3 . 3 . . . 2 . . . . . . . . . . . . . . . . . 3 . . . Intercept . | . . . . . . . . . . . . . . . . . . . . . . . . . . . . . . . . . . . . . Searches Triggered . | . . . . . . . . . . . . . . . . . . . . . . . . . . . . . . . . . . . . . Unchained Authorized 1 | . . . . . . . . . . . . . . . . . . . . . . . . . . . . . . . . . . . . 1 Construction Impeded 1 | . . . . . . . . . . . . . . . . . . . . . . . . . . . . . . . . . 1 . . . Haulers Reinforced 2 | . . . . . . . . . . . . . . . . . . . . . . . 1 . . . . . . . . . . . 1 . Active Scanning Responses . | . . . . . . . . . . . . . . . . . . . . . . . . . . . . . . . . . . . . . Cargo Convoy Interrupts . | . . . . . . . . . . . . . . . . . . . . . . . . . . . . . . . . . . . . . Stealth | -11 -10 -10 -9 -9 -9 -8 -8 -8 -8 -8 -7 -7 -7 -7 -7 -7 -6 -6 -6 -6 -5 -5 -5 -5 -5 -5 -4 -4 -4 -4 -4 -4 -4 -4 -3 -3 --------- Run | Yrd Mat Min Mat Min Exi Min Mat Gar Mat Gar Fac Gar Fac Gar Fac Gar Fac Was Fac Gar Fac Was Fac Gar Fac Gar Fac Gar Fac Ext Cet Arc Hub Gar Res Qua Distress Signals 31 | . 1 2 2 . . . 6 . 1 . . . . . . . 1 . . . 1 . 2 . . . . . 2 . 2 . 4 . 6 1 Communications Jammed 38 | . . . . . . . . . . . . . . . . . . . . . . . . . . . . . 34 . . . 4 . . . Distress Signals 35 | . . . . . . . . . . . . . . . . . . . . . . . . . . . . . 31 . . . 4 . . . Times Spotted 873 | . 24 4 40 15 . 12 69 19 17 24 23 26 5 34 10 59 10 . . 42 1 5 26 62 22 46 9 38 50 30 10 . 56 42 14 29 Peak Tracking Total 10 | . 3 1 5 5 . 6 7 4 5 4 4 4 2 3 3 7 4 . . 10 1 2 6 5 6 5 3 4 5 6 5 . 9 6 5 5 Tactical Retreats 28 | . 1 . 2 1 . 1 3 . . . 1 2 . . 1 6 . . . 2 . . 1 3 1 . . 1 1 . . . . . . 1 Traps | -11 -10 -10 -9 -9 -9 -8 -8 -8 -8 -8 -7 -7 -7 -7 -7 -7 -6 -6 -6 -6 -5 -5 -5 -5 -5 -5 -4 -4 -4 -4 -4 -4 -4 -4 -3 -3 ------- Run | Yrd Mat Min Mat Min Exi Min Mat Gar Mat Gar Fac Gar Fac Gar Fac Gar Fac Was Fac Gar Fac Was Fac Gar Fac Gar Fac Gar Fac Ext Cet Arc Hub Gar Res Qua Traps Triggered 69 | . 3 . 1 . . . 2 3 . 1 . 1 . 6 . 4 2 . . 13 1 . . 7 1 8 . 3 . 1 . . . 6 4 2 Indirectly . | . . . . . . . . . . . . . . . . . . . . . . . . . . . . . . . . . . . . . Trap Hack Attempts . | . . . . . . . . . . . . . . . . . . . . . . . . . . . . . . . . . . . . . Triggered . | . . . . . . . . . . . . . . . . . . . . . . . . . . . . . . . . . . . . . Disarmed . | . . . . . . . . . . . . . . . . . . . . . . . . . . . . . . . . . . . . . Reprogrammed . | . . . . . . . . . . . . . . . . . . . . . . . . . . . . . . . . . . . . . Reused . | . . . . . . . . . . . . . . . . . . . . . . . . . . . . . . . . . . . . . Traps Extracted . | . . . . . . . . . . . . . . . . . . . . . . . . . . . . . . . . . . . . . Installed . | . . . . . . . . . . . . . . . . . . . . . . . . . . . . . . . . . . . . . Triggered . | . . . . . . . . . . . . . . . . . . . . . . . . . . . . . . . . . . . . . Machines | -11 -10 -10 -9 -9 -9 -8 -8 -8 -8 -8 -7 -7 -7 -7 -7 -7 -6 -6 -6 -6 -5 -5 -5 -5 -5 -5 -4 -4 -4 -4 -4 -4 -4 -4 -3 -3 ---------- Run | Yrd Mat Min Mat Min Exi Min Mat Gar Mat Gar Fac Gar Fac Gar Fac Gar Fac Was Fac Gar Fac Was Fac Gar Fac Gar Fac Gar Fac Ext Cet Arc Hub Gar Res Qua Machines Disabled 101 | . . . 2 . . . 4 5 2 1 2 3 . 5 2 6 . . . 5 3 . 4 8 1 5 1 4 3 5 1 1 10 4 3 11 Max in Single Turn 8 | . . . 1 . . . 1 1 1 1 1 1 . 1 1 1 . . . 2 . . 1 1 1 1 1 1 1 1 1 1 8 1 1 1 Garrison Access 3 | . . . . . . . . . . . . . . . . . . . . . . . . . . . . . . . . . . . 3 . Garrison Relay 36 | . . . . . . . . 2 . 1 . 2 . 4 . 6 . . . 3 . . . 5 . 5 . 4 . . . . . 4 . . Phase Generator 2 | . . . . . . . . . . . . . . . . . . . . 1 . . . . . 1 . . . . . . . . . . Network Hub 1 | . . . . . . . . . . . . . . . . . . . . . . . . . . . . . . . . . 1 . . . Machines Repaired . | . . . . . . . . . . . . . . . . . . . . . . . . . . . . . . . . . . . . . Machines Dismantled . | . . . . . . . . . . . . . . . . . . . . . . . . . . . . . . . . . . . . . Machines Sabotaged . | . . . . . . . . . . . . . . . . . . . . . . . . . . . . . . . . . . . . . Overloaded Fab Kills . | . . . . . . . . . . . . . . . . . . . . . . . . . . . . . . . . . . . . . Hacking | -11 -10 -10 -9 -9 -9 -8 -8 -8 -8 -8 -7 -7 -7 -7 -7 -7 -6 -6 -6 -6 -5 -5 -5 -5 -5 -5 -4 -4 -4 -4 -4 -4 -4 -4 -3 -3 --------- Run | Yrd Mat Min Mat Min Exi Min Mat Gar Mat Gar Fac Gar Fac Gar Fac Gar Fac Was Fac Gar Fac Was Fac Gar Fac Gar Fac Gar Fac Ext Cet Arc Hub Gar Res Qua Machines Accessed 125 | . 6 1 15 . 2 . 13 2 6 2 2 2 5 3 4 2 1 . 1 3 2 . 3 3 6 4 3 2 9 7 . . 5 2 6 3 Terminals 81 | . 3 . 9 . . . 9 2 3 2 1 2 2 3 2 2 . . . 3 1 . 1 3 2 4 1 2 6 7 . . 4 2 3 2 Fabricators 5 | . . . . . . . . . . . . . 1 . 1 . . . . . . . . . 2 . . . 1 . . . . . . . Repair Stations 10 | . 1 . 2 . . . 1 . 1 . . . . . . . 1 . . . 1 . 1 . . . . . 2 . . . . . . . Recycling Units 4 | . 2 . 2 . . . . . . . . . . . . . . . . . . . . . . . . . . . . . . . . . Scanalyzers 10 | . . . 2 . . . 2 . 1 . . . 1 . . . . . . . . . . . 1 . 1 . . . . . . . 1 1 Garrison Access 12 | . . . . . . . 1 . 1 . 1 . 1 . 1 . . . 1 . . . 1 . 1 . 1 . . . . . 1 . 2 . Total Hacks 290 | . 14 1 42 . 2 . 30 5 14 4 4 5 12 4 14 9 2 . 3 4 8 . 6 6 12 6 10 4 15 14 . . 11 7 14 8 Successful 130 | . 7 1 15 . 2 . 10 2 6 2 3 2 9 2 9 1 2 . 3 2 4 . 3 2 9 2 3 1 5 8 . . 4 1 7 3 Failed 156 | . 7 . 27 . . . 19 3 7 2 1 3 2 2 5 8 . . . 2 4 . 3 4 3 4 6 3 10 6 . . 7 6 7 5 Catastrophic 40 | . 1 . 5 . . . 5 . 1 . . . 1 . 1 1 . . . 1 . . 1 2 1 2 1 2 2 1 . . 4 2 3 3 Database Lockouts 4 | . . . . . . . 1 . 1 . . . 1 . . . . . . . . . . . . . 1 . . . . . . . . . Manual 123 | . 10 . 28 . 1 . 19 . 8 2 1 . 4 . 10 . . . 1 1 3 . 2 . 5 . 4 . 12 5 1 . 4 . 2 . Terminals 186 | . 8 . 26 . . . 21 5 8 4 2 5 3 4 7 9 . . . 4 3 . 2 6 4 6 4 4 9 14 . . 9 7 7 5 Fabricators 13 | . . . . . . . . . . . . . 4 . 3 . . . . . . . . . 4 . . . 2 . . . . . . . Repair Stations 28 | . 3 . 7 . . . 3 . 2 . . . . . . . 2 . . . 5 . 2 . . . . . 4 . . . . . . . Recycling Units 6 | . 3 . 3 . . . . . . . . . . . . . . . . . . . . . . . . . . . . . . . . . Scanalyzers 27 | . . . 6 . . . 5 . 3 . . . 2 . . . . . . . . . . . 1 . 4 . . . . . . . 3 3 Garrison Access 27 | . . . . . . . 1 . 1 . 2 . 3 . 4 . . . 3 . . . 2 . 3 . 2 . . . . . 2 . 4 . Terminal Hacks 43 | . 3 1 3 . 2 . 3 2 2 2 . 2 1 2 2 1 . . . 2 . . . 2 . 2 . 1 1 4 . . 1 1 2 1 Record 1 | . . . . . 1 . . . . . . . . . . . . . . . . . . . . . . . . . . . . . . . Robot Schematic 2 | . 1 . . . . . . . . . . . . . 1 . . . . . . . . . . . . . . . . . . . . . Robot Analysis 1 | . . . 1 . . . . . . . . . . . . . . . . . . . . . . . . . . . . . . . . . Prototype ID Bank 4 | . 1 . 2 . . . . . 1 . . . . . . . . . . . . . . . . . . . . . . . . . . . Open Door 8 | . . 1 . . . . . . . . . . . 1 . . . . . 1 . . . 1 . 1 . . 1 2 . . . . . . Level Access Points 1 | . . . . . . . . . . . . . . . . . . . . . . . . . . . . . . . . . . . 1 . Emergency Access Points 7 | . . . . . . . . 1 . 1 . . . 1 . 1 . . . 1 . . . 1 . . . 1 . . . . . . . . Alert Level 1 | . . . . . . . 1 . . . . . . . . . . . . . . . . . . . . . . . . . . . . . Unreport Threat 6 | . . . . . . . 2 . 1 . . . . . 1 . . . . . . . . . . . . . . 1 . . 1 . . . Security Status 1 | . . . . . . . . . . . . . . . . . . . . . . . . . . . . . . 1 . . . . . . Patrol Status 1 | . . . . . . . . . . . . . . . . . . . . . . . . . . . . . . . . . . . 1 . Recall Investigation 1 | . . . . . . . . . . . . . . . . . . . . . . . . . . . . . . . . . . . . 1 Registered Components 1 | . . . . . . . . . . . . . 1 . . . . . . . . . . . . . . . . . . . . . . . Zone Layout 1 | . 1 . . . . . . . . . . . . . . . . . . . . . . . . . . . . . . . . . . . Garrison Registry 3 | . . . . . . . . 1 . 1 . 1 . . . . . . . . . . . . . . . . . . . . . . . . Patrol Navigation 3 | . . . . . . . . . . . . 1 . . . . . . . . . . . . . 1 . . . . . . . 1 . . Proto ID Catalog 1 | . . . . . 1 . . . . . . . . . . . . . . . . . . . . . . . . . . . . . . . Fabricator Hacks 10 | . . . . . . . . . . . . . 2 . 2 . . . . . . . . . 4 . . . 2 . . . . . . . Network Status 2 | . . . . . . . . . . . . . 1 . 1 . . . . . . . . . . . . . . . . . . . . . Load Schematic 4 | . . . . . . . . . . . . . . . 1 . . . . . . . . . 2 . . . 1 . . . . . . . Build 4 | . . . . . . . . . . . . . 1 . . . . . . . . . . . 2 . . . 1 . . . . . . . Repair Station Hacks 15 | . 2 . 4 . . . 1 . 2 . . . . . . . 2 . . . 4 . . . . . . . . . . . . . . . Scan Component 8 | . 1 . 2 . . . 1 . 1 . . . . . . . 1 . . . 2 . . . . . . . . . . . . . . . Repair 7 | . 1 . 2 . . . . . 1 . . . . . . . 1 . . . 2 . . . . . . . . . . . . . . . Recycling Unit Hacks . | . . . . . . . . . . . . . . . . . . . . . . . . . . . . . . . . . . . . . Scanalyzer 11 | . . . 1 . . . 4 . 1 . . . 1 . . . . . . . . . . . 1 . 1 . . . . . . . . 2 Insert Component 1 | . . . . . . . 1 . . . . . . . . . . . . . . . . . . . . . . . . . . . . . Analyze 2 | . . . . . . . 2 . . . . . . . . . . . . . . . . . . . . . . . . . . . . . Retrieve Study 8 | . . . 1 . . . 1 . 1 . . . 1 . . . . . . . . . . . 1 . 1 . . . . . . . . 2 Garrison Access Hacks 22 | . . . . . . . 1 . 1 . 2 . 2 . 2 . . . 2 . . . 2 . 2 . 2 . . . . . 2 . 4 . Unlock Access 10 | . . . . . . . 1 . 1 . 1 . 1 . 1 . . . 1 . . . 1 . 1 . 1 . . . . . 1 . . . Seal Access 2 | . . . . . . . . . . . . . . . . . . . . . . . . . . . . . . . . . . . 2 . Coupler Status 10 | . . . . . . . . . . . 1 . 1 . 1 . . . 1 . . . 1 . 1 . 1 . . . . . 1 . 2 . Unauthorized Hacks 29 | . 2 . 7 . . . 1 . . . 1 . 3 . 3 . . . 1 . . . 1 . 2 . . . 2 4 . . 1 . 1 . Terminals 16 | . . . 5 . . . 1 . . . 1 . . . 1 . . . . . . . . . 1 . . . 1 4 . . 1 . 1 . Track 3 | . . . . . . . . . . . . . . . . . . . . . . . . . . . . . . 3 . . . . . . Operators 8 | . . . . . . . 1 . . . 1 . . . 1 . . . . . . . . . 1 . . . 1 1 . . 1 . 1 . Skim 5 | . . . 5 . . . . . . . . . . . . . . . . . . . . . . . . . . . . . . . . . Fabricators 3 | . . . . . . . . . . . . . 2 . 1 . . . . . . . . . . . . . . . . . . . . . Liberate 1 | . . . . . . . . . . . . . 1 . . . . . . . . . . . . . . . . . . . . . . . Haulers 2 | . . . . . . . . . . . . . 1 . 1 . . . . . . . . . . . . . . . . . . . . . Repair Stations 2 | . . . . . . . . . . . . . . . . . . . . . . . 1 . . . . . 1 . . . . . . . Mechanics 2 | . . . . . . . . . . . . . . . . . . . . . . . 1 . . . . . 1 . . . . . . . Recycling Units 4 | . 2 . 2 . . . . . . . . . . . . . . . . . . . . . . . . . . . . . . . . . Tunnel 4 | . 2 . 2 . . . . . . . . . . . . . . . . . . . . . . . . . . . . . . . . . Scanalyzers . | . . . . . . . . . . . . . . . . . . . . . . . . . . . . . . . . . . . . . Garrison Access 4 | . . . . . . . . . . . . . 1 . 1 . . . 1 . . . . . 1 . . . . . . . . . . . Eject 4 | . . . . . . . . . . . . . 1 . 1 . . . 1 . . . . . 1 . . . . . . . . . . . Data Cores Recovered 2 | . . . 1 . . . . . . . . . . . . . . . . . . . . . . . . . . . . . 1 . . . Used . | . . . . . . . . . . . . . . . . . . . . . . . . . . . . . . . . . . . . . Hacking Detections 98 | . 4 . 13 . . . 10 2 4 2 2 2 2 3 3 2 . . . 3 2 . 3 3 5 3 2 2 7 5 . . 5 2 4 3 Full Trace Events 10 | . . . 3 . . . 1 . . . . . . . . 2 . . . . . . . . 1 . . 1 2 . . . . . . . Feedback Events 1 | . . . . . . . . . . . . . . . . 1 . . . . . . . . . . . . . . . . . . . . Corruption 1 | . . . . . . . . . . . . . . . . 1 . . . . . . . . . . . . . . . . . . . . Feedback Blocked . | . . . . . . . . . . . . . . . . . . . . . . . . . . . . . . . . . . . . . Robot Schematics Acquired 2 | . 1 . . . . . . . . . . . . . 1 . . . . . . . . . . . . . . . . . . . . . Robots Built 3 | . . . . . . . . . . . . . . . . . . . . . . . . . 2 . . . 1 . . . . . . . Authchips 1 | . . . . . . . . . . . . . . . . . . . . . . . . . 1 . . . . . . . . . . . Time 118 | . . . . . . . . . . . . . . . . . . . . . . . . . 78 . . . 40 . . . . . . . Total Robot Build Rating 5 | . . . . . . . . . . . . . . . . . . . . . . . . . 4 . . . 1 . . . . . . . Part Schematics Acquired 1 | . . . . . . . 1 . . . . . . . . . . . . . . . . . . . . . . . . . . . . . Parts Built 1 | . . . . . . . . . . . . . 1 . . . . . . . . . . . . . . . . . . . . . . . Authchips . | . . . . . . . . . . . . . . . . . . . . . . . . . . . . . . . . . . . . . Time 187 | . . . . . . . . . . . . . 187 . . . . . . . . . . . . . . . . . . . . . . . Total Part Build Rating 7 | . . . . . . . . . . . . . 7 . . . . . . . . . . . . . . . . . . . . . . . Part Studies Acquired 7 | . . . 1 . . . 1 . 1 . . . . . . . . . . . . . . . 1 . 1 . . . . . . . . 2 Parts Repaired 7 | . 1 . 2 . . . . . 1 . . . . . . . 1 . . . 2 . . . . . . . . . . . . . . . Time 332 | . 26 . 76 . . . . . 38 . . . . . . . 44 . . . 148 . . . . . . . . . . . . . . . Parts Recycled . | . . . . . . . . . . . . . . . . . . . . . . . . . . . . . . . . . . . . . Recycled Matter . | . . . . . . . . . . . . . . . . . . . . . . . . . . . . . . . . . . . . . Retrieved Matter . | . . . . . . . . . . . . . . . . . . . . . . . . . . . . . . . . . . . . . Retrieved Components . | . . . . . . . . . . . . . . . . . . . . . . . . . . . . . . . . . . . . . Parts Scanalyzed 1 | . . . . . . . 1 . . . . . . . . . . . . . . . . . . . . . . . . . . . . . Part Schematics Acquired 1 | . . . . . . . 1 . . . . . . . . . . . . . . . . . . . . . . . . . . . . . Parts Damaged . | . . . . . . . . . . . . . . . . . . . . . . . . . . . . . . . . . . . . . Bothacking | -11 -10 -10 -9 -9 -9 -8 -8 -8 -8 -8 -7 -7 -7 -7 -7 -7 -6 -6 -6 -6 -5 -5 -5 -5 -5 -5 -4 -4 -4 -4 -4 -4 -4 -4 -3 -3 ------------ Run | Yrd Mat Min Mat Min Exi Min Mat Gar Mat Gar Fac Gar Fac Gar Fac Gar Fac Was Fac Gar Fac Was Fac Gar Fac Gar Fac Gar Fac Ext Cet Arc Hub Gar Res Qua Used RIF Installer 11 | . . . . . . . . 1 . 1 . 2 . 1 . 1 . . . . . . . 1 . 1 . 1 . . . . . 2 . . Hotswap 1 | . . . . . . . . . . . . . . . . . . . . . . . . . . 1 . . . . . . . . . . Command Fork 2 | . . . . . . . . . . . . . . . . 1 . . . . . . . . . . . . . . . . . 1 . . Threat Obfuscator 1 | . . . . . . . . . . . . . . . . . . . . . . . . . . . . 1 . . . . . . . . Zone Cloak 2 | . . . . . . . . . . 1 . 1 . . . . . . . . . . . . . . . . . . . . . . . . Watcher Feeds 1 | . . . . . . . . . . . . . . 1 . . . . . . . . . . . . . . . . . . . . . . Patrol Navigation 1 | . . . . . . . . . . . . 1 . . . . . . . . . . . . . . . . . . . . . . . . Program Shield 1 | . . . . . . . . . . . . . . . . . . . . . . . . 1 . . . . . . . . . . . . Crosswire 1 | . . . . . . . . . . . . . . . . . . . . . . . . . . . . . . . . . . 1 . . Robots Hacked 203 | . . . . . . . . . 7 6 1 7 3 12 6 13 5 . . 13 2 5 10 22 8 15 4 12 12 3 1 . 11 14 7 4 Non-combat 41 | . . . . . . . . . 4 . 1 . 2 . 2 1 1 . . . 2 . 5 1 4 1 2 . 5 . . . 5 . 5 . Combat 162 | . . . . . . . . . 3 6 . 7 1 12 4 12 4 . . 13 . 5 5 21 4 14 2 12 7 3 1 . 6 14 2 4 Robot Hacks Applied 249 | . . . . . . . . . 9 6 4 8 7 12 7 15 6 . . 13 2 6 11 26 15 15 10 15 14 3 1 . 15 14 10 5 parse_system 14 | . . . . . . . . . . . . 1 . . . 1 . . . 3 . 1 . 1 1 . . 1 1 . 1 . 1 . 1 1 start_evac 1 | . . . . . . . . . . . . . . . . . . . . . . . . . . . . . . . . . . . 1 . find_chute 2 | . . . . . . . . . . . . . . . . . 1 . . . 1 . . . . . . . . . . . . . . . ignore_repairs 2 | . . . . . . . . . . . . . . . . . . . . . . . 2 . . . . . . . . . . . . . find_fabricator 1 | . . . . . . . . . . . . . . . . . . . . . . . . . 1 . . . . . . . . . . . drop_inventory 12 | . . . . . . . . . 1 . . . 1 . . . . . . . 1 . 1 . 2 . . . 2 . . . 2 . 2 . locate_stockpiles 1 | . . . . . . . . . . . . . . . . . . . . . . . . . . . . . 1 . . . . . . . purge_threat 28 | . . . . . . . . . 2 . 3 . 2 . 1 . . . . . . . . 3 6 . 4 3 . . . . 1 . 3 . block_reporting 2 | . . . . . . . . . . . . . 1 . . . . . . . . . . . . . 1 . . . . . . . . . clear_repairs 1 | . . . . . . . . . 1 . . . . . . . . . . . . . . . . . . . . . . . . . . . redirect_shields 3 | . . . . . . . . . . . . . . . . 1 . . . . . . . . . . . . . . . . 2 . . . disable_scanner 1 | . . . . . . . . . . . . . . . . . . . . . . . . . . . . . . . . . . . . 1 locate_prototypes 1 | . . . . . . . . . . . . . . . . . . . . . . . . . . . . . . . . . . . . 1 ignore_targets 5 | . . . . . . . . . . . . . . . . . . . . . . 5 . . . . . . . . . . . . . . find_garrison 4 | . . . . . . . . . 1 . . . 1 . . . . . . . . . 1 . . . 1 . . . . . . . . . scatter_targeting 1 | . . . . . . . . . . . . . . . . . . . . . . . . . . . . . . . . . 1 . . . disrupt_area 2 | . . . . . . . . . . . . . . . . . . . . . . . . . . . . . . . . . 2 . . . spike_heat 1 | . . . . . . . . . . . . . . . . . . . . . . . . . . 1 . . . . . . . . . . overload_power 5 | . . . . . . . . . . . . . . 2 . . . . . . . . 1 1 . . . . . . . . . 1 . . amplify_resonance 54 | . . . . . . . . . . . . 4 . 2 1 3 1 . . 4 . . 1 6 1 9 1 7 4 1 . . 1 5 1 2 reboot_system 6 | . . . . . . . . . 1 . . . . 1 . . . . . . . . . 1 . . . . . 1 . . 2 . . . overwrite_iff 35 | . . . . . . . . . . . . 1 . 1 2 3 3 . . 1 . . 1 7 2 1 1 3 3 1 . . 2 3 . . formatsys_low 11 | . . . . . . . . . 2 . 1 . 1 . 1 . . . . . . . 1 . 1 1 2 . . . . . . . 1 . formatsys_high 56 | . . . . . . . . . 1 6 . 2 1 6 2 7 1 . . 5 . . 3 7 1 3 . 1 3 . . . 1 5 1 . Relay Couplers Released 159 | . . . . . . . . 8 . 3 . 9 3 15 3 23 . . 3 13 . . . 22 3 20 3 16 . . . . . 13 2 . Ejected 12 | . . . . . . . . . . . . . 3 . 3 . . . 3 . . . . . 3 . . . . . . . . . . . Machine Destruction 144 | . . . . . . . . 8 . 3 . 9 . 15 . 23 . . . 13 . . . 22 . 20 . 16 . . . . . 13 2 . Programmers 3 | . . . . . . . . . . . . . . . . . . . . . . . . . . . 3 . . . . . . . . . Attached 78 | . . . . . . . . . 3 3 1 2 1 7 2 8 1 1 1 4 1 . 4 9 4 7 1 6 1 1 . . 3 4 1 2 Crosswired 4 | . . . . . . . . . . . . . . . . . . . . . . . . . . . . . . . . . . 4 . . Fabnet Peak Effective % . | . . . . . . . . . . . . . . . . . . . . . . . . . . . . . . . . . . . . . Robots Rewired 48 | . . . . . 5 . . . . . . . . 6 . . . . . 16 8 . . 3 . . . 6 . 4 . . . . . . Allies Hacked 7 | . . . . . . . . . . . . . . 1 . . . . . . 1 . 1 2 1 . . . 1 . . . . . . . Hacks Repelled . | . . . . . . . . . . . . . . . . . . . . . . . . . . . . . . . . . . . . . Allies | -11 -10 -10 -9 -9 -9 -8 -8 -8 -8 -8 -7 -7 -7 -7 -7 -7 -6 -6 -6 -6 -5 -5 -5 -5 -5 -5 -4 -4 -4 -4 -4 -4 -4 -4 -3 -3 -------- Run | Yrd Mat Min Mat Min Exi Min Mat Gar Mat Gar Fac Gar Fac Gar Fac Gar Fac Was Fac Gar Fac Was Fac Gar Fac Gar Fac Gar Fac Ext Cet Arc Hub Gar Res Qua Total Allies 189 | . . . . 4 5 . . . 3 6 1 3 1 15 5 11 3 . . 23 8 . 7 24 7 6 3 11 9 11 5 . 4 12 2 . Largest Group 20 | . . . . 4 8 8 . . 2 6 5 3 2 9 5 3 4 1 1 15 20 10 8 4 4 4 4 6 3 9 10 9 11 3 3 . Highest-Rated Group 804 | . . . . 71 93 93 . . 39 101 85 90 42 277 138 104 133 40 40 409 649 319 268 243 188 138 70 180 176 474 804 714 692 214 199 . Highest-Rated Ally 159 | . . . . 31 21 21 . . 29 29 29 32 26 80 32 40 41 40 40 43 43 43 43 95 68 49 40 47 68 159 159 137 96 116 116 . Total Orders 42 | . . . . . . . . . 3 5 1 6 . 1 2 2 . . . . 2 . 1 . 3 8 1 1 1 . . . 2 2 1 . STAY 16 | . . . . . . . . . 1 2 . 3 . 1 1 2 . . . . . . . . . 2 . 1 . . . . 2 1 . . FOLLOW 10 | . . . . . . . . . 1 2 . 3 . . 1 . . . . . . . . . . 2 . . . . . . . 1 . . AID 11 | . . . . . . . . . 1 1 1 . . . . . . . . . . . . . 2 3 1 . 1 . . . . . 1 . EXPLORE 5 | . . . . . . . . . . . . . . . . . . . . . 2 . 1 . 1 1 . . . . . . . . . . Ally Attacks 1111 | . . . . . . 39 . . 16 43 35 23 5 86 27 28 21 . . 73 42 131 44 118 20 43 3 31 23 52 51 . 87 61 9 . Total Damage 31663 | . . . . . . 452 . . 245 653 432 743 77 2695 752 688 696 . . 1980 1072 3289 946 3545 913 1019 79 859 1022 1839 2010 . 3499 1729 429 . Kills 215 | . . . . . . 9 . . 2 8 6 13 . 21 7 7 5 . . 19 9 5 7 23 6 9 . 4 4 11 10 . 18 8 4 . Allies Corrupted 8 | . . . . . . . . . . . . . . . . . . . . 1 . . 1 . . . . . . . . . 5 . 1 . Allies Melted 3 | . . . . . . . . . . . . . . 1 . . . . . 1 . . . . . . . . . 1 . . . . . . Intel | -11 -10 -10 -9 -9 -9 -8 -8 -8 -8 -8 -7 -7 -7 -7 -7 -7 -6 -6 -6 -6 -5 -5 -5 -5 -5 -5 -4 -4 -4 -4 -4 -4 -4 -4 -3 -3 ------- Run | Yrd Mat Min Mat Min Exi Min Mat Gar Mat Gar Fac Gar Fac Gar Fac Gar Fac Was Fac Gar Fac Was Fac Gar Fac Gar Fac Gar Fac Ext Cet Arc Hub Gar Res Qua Active Infowar (turns) 6226 | . . . . . . . 288 2 . . . . . . . . . . . . . . . 2 . . 303 1572 965 284 . . 404 449 1140 817 Sensors 290 | . . . . . . . 288 2 . . . . . . . . . . . . . . . . . . . . . . . . . . . . Structural 1060 | . . . . . . . . . . . . . . . . . . . . . . . . . . . . . . . . . . . 483 577 Cloaking 2 | . . . . . . . . . . . . . . . . . . . . . . . . 2 . . . . . . . . . . . . Jamming 4836 | . . . . . . . . . . . . . . . . . . . . . . . . . . . 303 1572 965 284 . . 404 449 657 202 ECM 38 | . . . . . . . . . . . . . . . . . . . . . . . . . . . . . . . . . . . . 38 Robot Analysis Total 1 | . . . 1 . . . . . . . . . . . . . . . . . . . . . . . . . . . . . . . . . Derelict Logs Recovered 2 | . . 1 . 1 . . . . . . . . . . . . . . . . . . . . . . . . . . . . . . . . Drone Launches 5 | . . . . . . . . . . . . . . . . . . . . . 2 . 1 . 1 1 . . . . . . . . . . Drone Recoveries 3 | . . . . . . . . . . . . . . . . . . . . . 1 . 1 . 1 . . . . . . . . . . . Exploration | -11 -10 -10 -9 -9 -9 -8 -8 -8 -8 -8 -7 -7 -7 -7 -7 -7 -6 -6 -6 -6 -5 -5 -5 -5 -5 -5 -4 -4 -4 -4 -4 -4 -4 -4 -3 -3 ------------- Run | Yrd Mat Min Mat Min Exi Min Mat Gar Mat Gar Fac Gar Fac Gar Fac Gar Fac Was Fac Gar Fac Was Fac Gar Fac Gar Fac Gar Fac Ext Cet Arc Hub Gar Res Qua Turns Passed 43457 | 72 1329 889 2771 1001 1011 1212 2762 1778 903 915 659 1056 1117 1799 515 2281 360 974 62 2034 767 308 754 2571 1257 1981 573 1572 1801 1278 426 93 833 1630 1202 911 Spaces Moved 17765 | 42 649 440 1163 436 430 558 989 605 303 359 246 416 465 745 222 878 118 412 25 708 236 70 312 1005 516 717 227 686 817 618 177 33 341 709 671 421 Core 6 | 6 . . . . . . . . . . . . . . . . . . . . . . . . . . . . . . . . . . . . Treads 17759 | 36 649 440 1163 436 430 558 989 605 303 359 246 416 465 745 222 878 118 412 25 708 236 70 312 1005 516 717 227 686 817 618 177 33 341 709 671 421 Legs . | . . . . . . . . . . . . . . . . . . . . . . . . . . . . . . . . . . . . . Wheels . | . . . . . . . . . . . . . . . . . . . . . . . . . . . . . . . . . . . . . Hover . | . . . . . . . . . . . . . . . . . . . . . . . . . . . . . . . . . . . . . Flight . | . . . . . . . . . . . . . . . . . . . . . . . . . . . . . . . . . . . . . Fastest Speed 50 | 50 160 160 160 200 213 160 200 240 216 200 212 212 222 210 210 210 200 200 240 160 240 240 160 160 160 160 160 160 160 166 160 160 160 160 155 155 Average Speed 203 | 144 160 191 200 211 213 212 226 242 221 207 212 218 222 210 210 217 226 223 240 236 240 240 205 216 207 234 212 178 167 166 160 160 164 185 158 155 Slowest Speed 400 | 160 160 240 240 213 213 213 280 243 243 240 216 222 222 222 210 400 280 240 240 240 240 240 240 240 240 245 245 245 239 166 166 160 240 240 160 155 Overloaded Moves . | . . . . . . . . . . . . . . . . . . . . . . . . . . . . . . . . . . . . . Propulsion Burnouts . | . . . . . . . . . . . . . . . . . . . . . . . . . . . . . . . . . . . . . Robots Hopped . | . . . . . . . . . . . . . . . . . . . . . . . . . . . . . . . . . . . . . Potential Cave-ins . | . . . . . . . . . . . . . . . . . . . . . . . . . . . . . . . . . . . . . Cave-ins Triggered . | . . . . . . . . . . . . . . . . . . . . . . . . . . . . . . . . . . . . . Teleports 3 | . . . . . . . . . . . . . . . . . . . . . . . . . . . . . . . . . . . . 3 Exploration Rate (%) 57 | 4 97 89 97 96 90 94 85 59 27 49 9 65 16 87 5 90 4 94 1 80 13 73 14 94 22 94 13 87 23 86 67 50 47 80 32 77 Regions Visited 36 Branch Regions 9 Pre-discovered Areas 9 | . 2 . 6 . 1 . . . . . . . . . . . . . . . . . . . . . . . . . . . . . . . Known Exits Taken 11 | . . . . . . 1 1 . 1 . 1 . 1 . 1 . . . 1 . . . 1 . 1 . 1 . . . . . 1 . . . Unknown Exits Taken 11 | 1 1 1 1 1 1 . . . . . . . . . . . . . . . . . . . . . . . 1 1 1 1 . . 1 . Scrap Searched 4 | . . 1 . 2 . 1 . . . . . . . . . . . . . . . . . . . . . . . . . . . . . . Spaces Dug 69 | . . . 2 9 . . 14 . . . . . 1 . . 15 1 . . . . . 3 . 2 . 2 1 6 . . 1 4 1 3 4 Terrain Destroyed 865 | . . . 13 52 . 11 56 25 17 . 25 16 4 5 1 80 6 1 . 78 . 2 10 10 10 30 4 32 39 8 7 4 245 31 30 13 Melee . | . . . . . . . . . . . . . . . . . . . . . . . . . . . . . . . . . . . . . Projectile 279 | . . . 13 8 . . 34 . 17 . . . 4 . 1 2 6 1 . . . 2 10 10 10 30 4 22 28 8 7 4 36 3 6 13 AOE 586 | . . . . 44 . 11 22 25 . . 25 16 . 5 . 78 . . . 78 . . . . . . . 10 11 . . . 209 28 24 . Terrain Rammed . | . . . . . . . . . . . . . . . . . . . . . . . . . . . . . . . . . . . . . Walls Destroyed . | . . . . . . . . . . . . . . . . . . . . . . . . . . . . . . . . . . . . . Machines Disabled . | . . . . . . . . . . . . . . . . . . . . . . . . . . . . . . . . . . . . . Actions | -11 -10 -10 -9 -9 -9 -8 -8 -8 -8 -8 -7 -7 -7 -7 -7 -7 -6 -6 -6 -6 -5 -5 -5 -5 -5 -5 -4 -4 -4 -4 -4 -4 -4 -4 -3 -3 --------- Run | Yrd Mat Min Mat Min Exi Min Mat Gar Mat Gar Fac Gar Fac Gar Fac Gar Fac Was Fac Gar Fac Was Fac Gar Fac Gar Fac Gar Fac Ext Cet Arc Hub Gar Res Qua Total 22975 | 50 812 470 1442 472 526 570 1326 818 457 458 316 496 516 899 258 1089 193 452 28 931 427 206 383 1264 642 931 287 905 1111 824 320 73 588 1009 799 627 Wait 1880 | 1 60 7 126 4 4 1 154 108 87 10 20 8 3 24 7 14 48 7 . 22 163 128 8 21 52 63 21 57 155 102 100 25 75 89 62 44 Move 17738 | 41 648 439 1162 435 429 557 989 604 303 358 246 415 464 744 222 877 118 411 24 707 236 69 312 1004 515 716 227 685 816 617 176 32 341 708 670 421 Hop . | . . . . . . . . . . . . . . . . . . . . . . . . . . . . . . . . . . . . . Pick Up 242 | 1 11 5 13 . 2 . 19 14 2 10 1 6 8 13 2 15 1 7 1 10 1 . 2 17 5 15 . 8 4 1 3 . 6 17 7 15 Fast Attach 103 | 6 11 1 7 3 . 1 3 1 1 2 . . . 1 . 8 3 2 . 7 2 1 3 6 . 1 2 3 6 1 5 . 2 7 3 4 Attach 122 | . . . 2 1 . 1 14 14 1 5 3 3 2 3 1 12 1 2 1 4 1 . 1 3 3 6 1 1 2 2 1 . 6 8 2 15 Detach 43 | . 3 . 5 . . . 6 5 . 1 . . . . . 2 . 4 1 2 . . . 1 . 2 . 3 . 2 2 . . 3 1 . Swap 418 | 1 3 4 15 4 1 1 18 12 16 12 9 16 9 27 5 29 3 3 1 20 2 . 12 28 12 22 9 30 24 8 1 . 17 19 13 12 Drop 195 | . 5 5 26 . 2 . 21 4 2 5 . 2 3 9 2 7 . 7 . 13 1 . 2 11 1 15 1 10 8 1 6 . 1 13 7 5 Fire 1897 | . 69 9 80 21 . 5 98 51 41 52 37 44 23 64 17 120 18 8 . 131 21 8 37 107 45 74 25 106 83 52 26 16 133 133 32 111 Melee . | . . . . . . . . . . . . . . . . . . . . . . . . . . . . . . . . . . . . . Ram 1 | . . . . . . . . . . . . . . . . . . . . . . . . . . 1 . . . . . . . . . . Kick . | . . . . . . . . . . . . . . . . . . . . . . . . . . . . . . . . . . . . . Crush 74 | . 2 . 6 4 . 4 4 1 3 . . . 4 . 1 1 1 . . 2 . . 6 . 7 . 1 . 11 3 . . 7 4 2 . Escape Stasis 64 | . . . . . . . . 4 . . . 2 . 10 . 4 . . . 12 . . . 8 . 14 . 2 . . . . . 8 . . Rewire 198 | . . . . . 88 . . . 1 3 . . . 4 1 . . 1 . 1 . . . 58 2 2 . . 2 35 . . . . . . Trap . | . . . . . . . . . . . . . . . . . . . . . . . . . . . . . . . . . . . . . Miscellaneous . | . . . . . . . . . . . . . . . . . . . . . . . . . . . . . . . . . . . . . Route ------- -11/Scrapyard -10/Materials (discovered 4 exits: *Mat x3 / *Min) -10/Mines (discovered 2 exits: *Mat x2) -9/Materials (discovered 5 exits: *Mat x3 / [*Min x2]) -9/Mines (discovered 3 exits: *Mat x2 / *Exi) -9/Exiles -8/Mines -8/Materials (discovered 4 exits: *Fac x3 / Gar) -8/Garrison (discovered 4 exits: *Mat x4) -8/Materials (discovered 2 exits: *Fac / Gar) -8/Garrison (discovered 3 exits: *Fac x3) -7/Factory (discovered 4 exits: *Fac x2 / Sto / Gar) -7/Garrison (discovered 3 exits: *Fac x3) -7/Factory (discovered 3 exits: *Fac / [*Low] / Gar) -7/Garrison (discovered 4 exits: *Fac x3 / *Fac) -7/Factory (discovered 2 exits: *Fac / Gar) -7/Garrison (discovered 3 exits: *Fac x3) -6/Factory -6/Waste -6/Factory -6/Garrison (discovered 3 exits: *Fac x3) -5/Factory -5/Waste -5/Factory (discovered 2 exits: *Fac / Gar) -5/Garrison (discovered 3 exits: *Fac x3) -5/Factory (discovered 2 exits: *Fac / Gar) -5/Garrison (discovered 3 exits: *Fac x3) -4/Factory -4/Garrison (discovered 3 exits: *Fac x3) -4/Factory (discovered 3 exits: *Res / [*Upp] / *Ext) -4/Extension (discovered 2 exits: *Res / *Cet) -4/Cetus (discovered 2 exits: *Res / [*Arc]) -4/Archives -4/Hub_04(d) (discovered 4 exits: *Res x3 / Gar) -4/Garrison (discovered 3 exits: *Res x3) -3/Research (discovered 4 exits: Res x3 / *Qua) -3/Quarantine History --------- Turn | Location | Event 2 | -11/Scrapyard | Met Revision 17 15 | -11/Scrapyard | Discovered new exit (range 16) 73 | -11/Scrapyard | Entered Materials 298 | -10/Materials | Discovered new exit (range 11) 306 | -10/Materials | Build established: Mutant 461 | -10/Materials | Discovered new exit (range 16) 684 | -10/Materials | Discovered new exit (range 7) 873 | -10/Materials | Derelicts attacked the area 1062 | -10/Materials | Repaired Lgt. Treads 1182 | -10/Materials | Discovered new exit (range 10) 1402 | -10/Materials | Entered Mines 1403 | -10/Mines | Assembled infested the area 1408 | -10/Mines | Assisted by a Guerilla fighting off Assembled 1492 | -10/Mines | A weapon hastily lodged in a ceiling crevice suddenly fell to the ground 1578 | -10/Mines | Learned Materials stockpile data 1804 | -10/Mines | Discovered new exit (range 10) 2033 | -10/Mines | Met a Derelict who couldn't figure out how to use a Trap Extractor 2272 | -10/Mines | Discovered new exit (range 7) 2291 | -10/Mines | Entered Materials 2291 | -9/Materials | Evolved 2 slots: Propulsion x1, Utility x1 2959 | -9/Materials | Discovered new exit (range 8) 2997 | -9/Materials | Discovered new exit (range 11) 3176 | -9/Materials | Discovered new exit (range 13) 3772 | -9/Materials | Learned Storage emergency access door positions 3867 | -9/Materials | Discovered new exit (range 8) 3876 | -9/Materials | Learned location of Zion (-6) 3941 | -9/Materials | Identified exit to Materials 3941 | -9/Materials | Learned location of 1 exit from Materials 3973 | -9/Materials | Learned location of 2 exits from Materials 4030 | -9/Materials | Loaded intel: 11 trap records 4075 | -9/Materials | Learned location of 1 exit from Recycling 4132 | -9/Materials | Learned location of 1 exit from Storage 4789 | -9/Materials | Repaired Ion Cannon 4936 | -9/Materials | Repaired Ion Cannon 5062 | -9/Materials | Entered Mines 5770 | -9/Mines | Received a Mining Laser from a helpful Derelict 5912 | -9/Mines | Assisted by bots powering up and referring to "LRC-V3" 6055 | -9/Mines | Deemed a non-threat by the Exiles lab entrance 6055 | -9/Mines | Discovered new exit (range 5) 6063 | -9/Mines | Entered Exiles 6063 | -9/Exiles | Found Exiles lab destroyed 6063 | -9/Exiles | Accompanied by 3 allies 6436 | -9/Exiles | Opened EX-Vault 6447 | -9/Exiles | Found AWS/Thermal 6468 | -9/Exiles | Build established: Commander-Mutant 7053 | -9/Exiles | Discovered new exit (range 10) 7074 | -9/Exiles | Entered Mines 7074 | -8/Mines | Accompanied by 8 allies 7431 | -8/Mines | Lost 4 allies 7683 | -8/Mines | Build established: Mutant 7698 | -8/Mines | Found a Scrap Suit stashed away for nefarious purposes 7798 | -8/Mines | Lost 3 allies 8286 | -8/Mines | Entered Materials 8286 | -8/Materials | Evolved 2 slots: Utility x2 8287 | -8/Materials | Identified exit to Factory 8799 | -8/Materials | Lost 7 parts (1p3n2u1w) 8856 | -8/Materials | Garrison activated, responded to threat 9016 | -8/Materials | Central database locked down 9328 | -8/Materials | Build established: Scavenger-Mutant 10124 | -8/Materials | Garrison activated, responded to threat 10542 | -8/Materials | Build established: Mutant 10686 | -8/Materials | First assault squad dispatched 11048 | -8/Materials | Identified exit to Garrison 11048 | -8/Materials | Entered Garrison 11154 | -8/Garrison | Triggered checkpoint 11167 | -8/Garrison | AWS/Thermal suddenly broke down 11191 | -8/Garrison | Core integrity fell below 50% 11290 | -8/Garrison | Garrison Relay disabled 11480 | -8/Garrison | Triggered checkpoint 11486 | -8/Garrison | AWS/Thermal suddenly broke down 11502 | -8/Garrison | Triggered checkpoint 11519 | -8/Garrison | Triggered checkpoint 11562 | -8/Garrison | Destroyed 8 combat bots 11644 | -8/Garrison | Triggered checkpoint 11786 | -8/Garrison | Triggered checkpoint 11791 | -8/Garrison | Garrison Relay disabled 11855 | -8/Garrison | Discovered new exit (range 10) 12096 | -8/Garrison | Triggered checkpoint 12261 | -8/Garrison | Discovered new exit (range 18) 12261 | -8/Garrison | Discovered new exit (range 80) 12261 | -8/Garrison | Discovered new exit (range 51) 12261 | -8/Garrison | Discovered new exit (range 40) 12782 | -8/Garrison | Installed Relay Interface Framework 12826 | -8/Garrison | Entered Materials 13039 | -8/Materials | Central database locked down 13077 | -8/Materials | Build established: Bothacker-Mutant 13082 | -8/Materials | Garrison activated, responded to threat 13364 | -8/Materials | Repaired Arm. Treads 13460 | -8/Materials | Discovered exit to Factory (range 16) 13728 | -8/Materials | Identified exit to Garrison 13729 | -8/Materials | Entered Garrison 13729 | -8/Garrison | Accompanied by 2 allies 14029 | -8/Garrison | Triggered checkpoint 14067 | -8/Garrison | Garrison Relay disabled 14121 | -8/Garrison | Expanded RIF knowledge: Zone Cloak 14361 | -8/Garrison | Triggered checkpoint 14394 | -8/Garrison | Triggered checkpoint 14424 | -8/Garrison | Triggered checkpoint 14465 | -8/Garrison | Triggered checkpoint 14545 | -8/Garrison | Triggered checkpoint 14603 | -8/Garrison | Discovered exit to Factory (range 14) 14631 | -8/Garrison | Discovered exit to Factory (range 80) 14631 | -8/Garrison | Discovered exit to Factory (range 7) 14631 | -8/Garrison | Discovered exit to Factory (range 53) 14644 | -8/Garrison | Entered Factory 14644 | -7/Factory | Accompanied by 5 allies 14644 | -7/Factory | Evolved 2 slots: Propulsion x1, Utility x1 14645 | -7/Factory | Identified exit to Storage 14759 | -7/Factory | Garrison activated, responded to threat 14819 | -7/Factory | Discovered new exit (range 8) 14891 | -7/Factory | Discovered new exit (range 15) 15009 | -7/Factory | Lost 3 allies 15076 | -7/Factory | Destroyed 8 combat bots 15303 | -7/Factory | Identified exit to Garrison 15303 | -7/Factory | Entered Garrison 15303 | -7/Garrison | Accompanied by 1 ally 15450 | -7/Garrison | Triggered checkpoint 15506 | -7/Garrison | Garrison Relay disabled 15583 | -7/Garrison | Triggered checkpoint 15616 | -7/Garrison | Triggered checkpoint 15652 | -7/Garrison | Triggered checkpoint 15665 | -7/Garrison | Triggered checkpoint 15929 | -7/Garrison | Discovered new exit (range 76) 15929 | -7/Garrison | Discovered new exit (range 22) 15929 | -7/Garrison | Discovered new exit (range 78) 16169 | -7/Garrison | Garrison Relay disabled 16252 | -7/Garrison | Expanded RIF knowledge: Patrol Navigation 16305 | -7/Garrison | Expanded RIF knowledge: Zone Cloak 16359 | -7/Garrison | Entered Factory 16359 | -7/Factory | Accompanied by 1 ally 16386 | -7/Factory | Central database locked down 16603 | -7/Factory | Build established: Botlord-Mutant 17129 | -7/Factory | Fabricated Molecular Scythe? 17225 | -7/Factory | Discovered new exit (range 12) 17369 | -7/Factory | Discovered new exit (range 15) 17470 | -7/Factory | Identified exit to Garrison 17476 | -7/Factory | Entered Garrison 17476 | -7/Garrison | Accompanied by 2 allies 17491 | -7/Garrison | Triggered checkpoint 17502 | -7/Garrison | Discovered new exit (range 13) 17772 | -7/Garrison | Lost 4 allies 17800 | -7/Garrison | Triggered checkpoint 17875 | -7/Garrison | Garrison Relay disabled 17921 | -7/Garrison | Found embedded Infiltrators 18042 | -7/Garrison | Triggered checkpoint 18045 | -7/Garrison | Triggered checkpoint 18076 | -7/Garrison | Triggered checkpoint 18152 | -7/Garrison | Discovered new exit (range 13) 18186 | -7/Garrison | Triggered checkpoint 18190 | -7/Garrison | Expanded RIF knowledge: Watcher Feeds 18379 | -7/Garrison | Garrison Relay disabled 18580 | -7/Garrison | Discovered new exit (range 12) 18626 | -7/Garrison | Triggered checkpoint 18659 | -7/Garrison | Garrison Relay disabled 18927 | -7/Garrison | Discovered new exit (range 10) 18962 | -7/Garrison | Triggered checkpoint 19036 | -7/Garrison | Garrison Relay disabled 19275 | -7/Garrison | Entered Factory 19275 | -7/Factory | Accompanied by 2 allies 19433 | -7/Factory | Discovered new exit (range 15) 19690 | -7/Factory | Garrison activated, responded to threat 19773 | -7/Factory | Lost 3 allies 19778 | -7/Factory | Identified exit to Garrison 19790 | -7/Factory | Entered Garrison 19790 | -7/Garrison | Accompanied by 2 allies 19934 | -7/Garrison | Lost 3 allies 19950 | -7/Garrison | Expanded RIF knowledge: Command Fork 20000 | -7/Garrison | Destroyed 7 combat bots 20008 | -7/Garrison | Garrison Relay disabled 20138 | -7/Garrison | Triggered checkpoint 20153 | -7/Garrison | Garrison Relay disabled 20382 | -7/Garrison | Triggered checkpoint 20404 | -7/Garrison | Triggered checkpoint 20455 | -7/Garrison | Triggered checkpoint 20500 | -7/Garrison | Triggered checkpoint 20548 | -7/Garrison | Garrison Relay disabled 20663 | -7/Garrison | Discovered new exit (range 8) 20824 | -7/Garrison | Triggered checkpoint 20856 | -7/Garrison | Garrison Relay disabled 20896 | -7/Garrison | Discovered new exit (range 8) 21164 | -7/Garrison | Discovered new exit (range 12) 21234 | -7/Garrison | Triggered checkpoint 21267 | -7/Garrison | Garrison Relay disabled 21298 | -7/Garrison | Garrison Relay disabled 21724 | -7/Garrison | P-60 Hacker assimilated allied Angel 4a 21788 | -7/Garrison | Lost 4 parts (2n1u1w) 22071 | -7/Garrison | Entered Factory 22071 | -6/Factory | Accompanied by 3 allies 22071 | -6/Factory | Evolved 2 slots: Power x1, Utility x1 22217 | -6/Factory | Repaired Imp. Cooling System 22351 | -6/Factory | Lost 3 allies 22427 | -6/Factory | Discovered new exit (range 14) 22431 | -6/Factory | Sucked down chute 22431 | -6/Factory | Entered Waste 22431 | -6/Waste | The area was eerily silent 22441 | -6/Waste | 1 allies followed down the chute 22556 | -6/Waste | Found Prototype Launcher 22556 | -6/Waste | Identified Tesla Bomb Launcher 22706 | -6/Waste | Discovered new exit (range 12) 23405 | -6/Waste | Entered Factory 23405 | -6/Factory | Accompanied by 1 ally 23458 | -6/Factory | Identified exit to Garrison 23467 | -6/Factory | Entered Garrison 23467 | -6/Garrison | Accompanied by 1 ally 23515 | -6/Garrison | Triggered checkpoint 23556 | -6/Garrison | Garrison Relay disabled 23665 | -6/Garrison | Spotted B-75 Beast 23672 | -6/Garrison | Destroyed B-75 Beast 23699 | -6/Garrison | Triggered checkpoint 23709 | -6/Garrison | Triggered checkpoint 23746 | -6/Garrison | Triggered checkpoint 23780 | -6/Garrison | Phase Generator disabled 23797 | -6/Garrison | Spotted B-75 Beast 23957 | -6/Garrison | Found Unknown Device 23957 | -6/Garrison | Identified Quantum Capacitor 24026 | -6/Garrison | Warlord forces raided the area 24027 | -6/Garrison | Discovered new exit (range 13) 24085 | -6/Garrison | Triggered checkpoint 24171 | -6/Garrison | Garrison Relay disabled 24199 | -6/Garrison | Garrison Relay disabled 24315 | -6/Garrison | Triggered checkpoint 24317 | -6/Garrison | Triggered checkpoint 24361 | -6/Garrison | Triggered checkpoint 24602 | -6/Garrison | Discovered new exit (range 10) 24611 | -6/Garrison | Lost 4 allies 25185 | -6/Garrison | Triggered checkpoint 25452 | -6/Garrison | Discovered new exit (range 15) 25501 | -6/Garrison | Entered Factory 25501 | -5/Factory | Accompanied by 12 allies 25501 | -5/Factory | Evolved 2 slots: Utility x2 26021 | -5/Factory | Repaired Broken Adv. Cryofiber Web 26084 | -5/Factory | Repaired Imp. Force Field 26101 | -5/Factory | First assault squad dispatched 26268 | -5/Factory | Sucked down chute 26268 | -5/Factory | Entered Waste 26283 | -5/Waste | EMP discharged 26286 | -5/Waste | Spotted C-40 Crusher 26310 | -5/Waste | Spotted C-40 Crusher 26316 | -5/Waste | Spotted C-40 Crusher 26348 | -5/Waste | Spotted C-40 Crusher 26361 | -5/Waste | Spotted C-40 Crusher 26383 | -5/Waste | EMP discharged 26383 | -5/Waste | System corruption reached 10% 26408 | -5/Waste | Discovered new exit (range 15) 26443 | -5/Waste | Lost 3 allies 26483 | -5/Waste | EMP discharged 26576 | -5/Waste | Entered Factory 26576 | -5/Factory | Accompanied by 7 allies 26586 | -5/Factory | 20 allies followed down the chute 26646 | -5/Factory | Discovered new exit (range 31) 27330 | -5/Factory | Identified exit to Garrison 27330 | -5/Factory | Entered Garrison 27330 | -5/Garrison | Accompanied by 1 ally 27400 | -5/Garrison | Triggered checkpoint 27480 | -5/Garrison | Garrison Relay disabled 27513 | -5/Garrison | Lost 3 allies 27753 | -5/Garrison | Triggered checkpoint 27754 | -5/Garrison | Triggered checkpoint 27945 | -5/Garrison | Expanded RIF knowledge: Program Shield 28010 | -5/Garrison | Discovered new exit (range 12) 28012 | -5/Garrison | Triggered checkpoint 28054 | -5/Garrison | Triggered checkpoint 28071 | -5/Garrison | Garrison Relay disabled 28302 | -5/Garrison | Triggered checkpoint 28335 | -5/Garrison | Garrison Relay disabled 28476 | -5/Garrison | Triggered checkpoint 28517 | -5/Garrison | Triggered checkpoint 28615 | -5/Garrison | Spotted B-75 Beast 28755 | -5/Garrison | Triggered checkpoint 28770 | -5/Garrison | Garrison Relay disabled 28816 | -5/Garrison | Heavy support dispatched to Factory 28938 | -5/Garrison | Discovered new exit (range 4) 28996 | -5/Garrison | Found embedded Infiltrators 29200 | -5/Garrison | Heavy support dispatched to Factory 29234 | -5/Garrison | Triggered checkpoint 29286 | -5/Garrison | Garrison Relay disabled 29321 | -5/Garrison | Spotted B-75 Beast 29358 | -5/Garrison | Destroyed B-75 Beast 29374 | -5/Garrison | Found Unknown Hackware 29376 | -5/Garrison | Found Unknown Hackware 29539 | -5/Garrison | Discovered new exit (range 10) 29698 | -5/Garrison | H-XX Assembler disabled 29901 | -5/Garrison | Entered Factory 29901 | -5/Factory | Accompanied by 1 ally 30572 | -5/Factory | Fabricated M-28 Smith? 30885 | -5/Factory | Discovered new exit (range 10) 31008 | -5/Factory | Fabricated M-13 Machinist (x1) 31086 | -5/Factory | System corruption reached 30% 31146 | -5/Factory | Identified exit to Garrison 31158 | -5/Factory | Entered Garrison 31158 | -5/Garrison | Accompanied by 2 allies 31356 | -5/Garrison | Triggered checkpoint 31431 | -5/Garrison | Garrison Relay disabled 31493 | -5/Garrison | Expanded RIF knowledge: Hotswap 31493 | -5/Garrison | Identified Relay Coupler [Proto] (x2) 31583 | -5/Garrison | Triggered checkpoint 31591 | -5/Garrison | Triggered checkpoint 31622 | -5/Garrison | Triggered checkpoint 31653 | -5/Garrison | Discovered new exit (range 26) 31674 | -5/Garrison | Triggered checkpoint 32010 | -5/Garrison | Garrison Relay disabled 32143 | -5/Garrison | Triggered checkpoint 32210 | -5/Garrison | Discovered new exit (range 10) 32236 | -5/Garrison | Triggered checkpoint 32279 | -5/Garrison | Garrison Relay disabled 32349 | -5/Garrison | Garrison Relay disabled 32579 | -5/Garrison | Phase Generator disabled 32658 | -5/Garrison | Rescued a captive Derelict 32731 | -5/Garrison | Discovered new exit (range 3) 32788 | -5/Garrison | Triggered checkpoint 32906 | -5/Garrison | Garrison Relay disabled 33139 | -5/Garrison | Entered Factory 33139 | -4/Factory | Accompanied by 1 ally 33139 | -4/Factory | Evolved 2 slots: Propulsion x1, Utility x1 33683 | -4/Factory | Central database locked down 33709 | -4/Factory | Identified exit to Garrison 33712 | -4/Factory | Entered Garrison 33712 | -4/Garrison | Accompanied by 3 allies 33913 | -4/Garrison | Triggered checkpoint 33945 | -4/Garrison | Garrison Relay disabled 34038 | -4/Garrison | Triggered checkpoint 34086 | -4/Garrison | Triggered checkpoint 34222 | -4/Garrison | Triggered checkpoint 34238 | -4/Garrison | Triggered checkpoint 34274 | -4/Garrison | Triggered checkpoint 34342 | -4/Garrison | Lost 4 allies 34353 | -4/Garrison | Triggered checkpoint 34404 | -4/Garrison | Garrison Relay disabled 34527 | -4/Garrison | Discovered new exit (range 8) 34760 | -4/Garrison | Discovered new exit (range 10) 34773 | -4/Garrison | Triggered checkpoint 34797 | -4/Garrison | Garrison Relay disabled 34982 | -4/Garrison | Triggered checkpoint 35012 | -4/Garrison | Triggered checkpoint 35170 | -4/Garrison | Garrison Relay disabled 35246 | -4/Garrison | Discovered new exit (range 9) 35264 | -4/Garrison | Expanded RIF knowledge: Threat Obfuscation 35284 | -4/Garrison | Entered Factory 36554 | -4/Factory | Fabricated M-13 Machinist (x1) 36618 | -4/Factory | Found Quantum Capacitor 37047 | -4/Factory | Discovered new exit (range 10) 37050 | -4/Factory | Discovered new exit (range 6) 37079 | -4/Factory | Discovered new exit (range 6) 37085 | -4/Factory | Entered Extension 37145 | -4/Extension | Rescued A7 37847 | -4/Extension | Spotted B-86 Titan 37865 | -4/Extension | Spotted B-86 Titan 37877 | -4/Extension | Destroyed B-86 Titan 37990 | -4/Extension | Rescued a captive Derelict 37992 | -4/Extension | Rescued a captive Derelict 38095 | -4/Extension | Rescued a captive Derelict 38117 | -4/Extension | Rescued a captive Derelict 38127 | -4/Extension | Rescued a captive Derelict 38329 | -4/Extension | Discovered new exit (range 10) 38331 | -4/Extension | Discovered new exit (range 6) 38363 | -4/Extension | Entered Cetus 38363 | -4/Cetus | Accompanied by 9 allies (A7) 38368 | -4/Cetus | Acquired a Cetus Manufacturing Module code from A7 38383 | -4/Cetus | Spotted Cetus Guard 38389 | -4/Cetus | Spotted Cetus Guard 38389 | -4/Cetus | Spotted Cetus Guard 38391 | -4/Cetus | Spotted Cetus Guard 38411 | -4/Cetus | Allies destroyed Cetus Guard 38413 | -4/Cetus | Allies destroyed Cetus Guard 38419 | -4/Cetus | Allies destroyed Cetus Guard 38438 | -4/Cetus | System corruption reached 10% 38450 | -4/Cetus | Lost 4 allies 38502 | -4/Cetus | Started Cetus Manufacturing Module 38513 | -4/Cetus | Escorted A7 to Cetus Mainframe 38527 | -4/Cetus | Manufactured an Enhanced Grunt 38539 | -4/Cetus | Discovered new exit (range 16) 38552 | -4/Cetus | Manufactured an Enhanced Grunt 38577 | -4/Cetus | Manufactured an Enhanced Grunt 38602 | -4/Cetus | Manufactured an Enhanced Grunt 38627 | -4/Cetus | Manufactured an Enhanced Grunt 38653 | -4/Cetus | Spotted Cetus Guard 38653 | -4/Cetus | Spotted Cetus Guard 38653 | -4/Cetus | Allies destroyed Cetus Guard 38654 | -4/Cetus | Spotted Cetus Guard 38658 | -4/Cetus | Allies destroyed Cetus Guard 38659 | -4/Cetus | Spotted Cetus Guard 38666 | -4/Cetus | Allies destroyed Cetus Guard 38669 | -4/Cetus | Destroyed Cetus Guard 38676 | -4/Cetus | Discovered new exit (range 15) 38684 | -4/Cetus | Met Revision 17 38789 | -4/Cetus | Entered Archives 38789 | -4/Archives | Accompanied by 9 allies (A7) 38794 | -4/Archives | Received a hacking code to weaken MAIN.C 38829 | -4/Archives | Met Zhirov 38835 | -4/Archives | Reinforcements dispatched to Archives 38837 | -4/Archives | Discovered new exit (range 13) 38880 | -4/Archives | Reinforcements dispatched to Archives 38882 | -4/Archives | Entered Hub_04(d) 38882 | -4/Hub_04(d) | Accompanied by 8 allies 39154 | -4/Hub_04(d) | Discovered new exit (range 30) 39192 | -4/Hub_04(d) | Discovered new exit (range 5) 39321 | -4/Hub_04(d) | Discovered new exit (range 23) 39441 | -4/Hub_04(d) | Network Hub disabled 39474 | -4/Hub_04(d) | Spotted Lightning 39474 | -4/Hub_04(d) | Spotted Lightning 39476 | -4/Hub_04(d) | Spotted Lightning 39488 | -4/Hub_04(d) | Lost 5 allies 39509 | -4/Hub_04(d) | Garrison activated, responded to threat 39512 | -4/Hub_04(d) | System corruption reached 30% 39521 | -4/Hub_04(d) | Destroyed Lightning 39535 | -4/Hub_04(d) | Destroyed Lightning 39538 | -4/Hub_04(d) | Spotted Lightning 39561 | -4/Hub_04(d) | Destroyed Lightning 39574 | -4/Hub_04(d) | Found Exp. EM Shield 39578 | -4/Hub_04(d) | Lost 3 parts (1n1u1w) 39586 | -4/Hub_04(d) | Spotted Lightning 39592 | -4/Hub_04(d) | Spotted Lightning 39597 | -4/Hub_04(d) | Found Prototype Device 39597 | -4/Hub_04(d) | Identified Exp. Phase Shifter 39624 | -4/Hub_04(d) | Core integrity fell below 50% 39632 | -4/Hub_04(d) | First assault squad dispatched 39637 | -4/Hub_04(d) | Destroyed Lightning 39645 | -4/Hub_04(d) | Destroyed Lightning 39654 | -4/Hub_04(d) | Destroyed Lightning 39715 | -4/Hub_04(d) | Identified exit to Garrison 39715 | -4/Hub_04(d) | Entered Garrison 39715 | -4/Garrison | Accompanied by 1 ally 39744 | -4/Garrison | Expanded RIF knowledge: Command Fork 39805 | -4/Garrison | Triggered checkpoint 39833 | -4/Garrison | Garrison Relay disabled 39939 | -4/Garrison | Lost 4 allies 39946 | -4/Garrison | Lost 3 parts (1n1u1w) 40112 | -4/Garrison | Spotted B-86 Titan 40203 | -4/Garrison | Destroyed B-86 Titan 40226 | -4/Garrison | Lost 3 parts (1p2u) 40245 | -4/Garrison | Found Hvy. Reflective Plating 40247 | -4/Garrison | Triggered checkpoint 40247 | -4/Garrison | Triggered checkpoint 40403 | -4/Garrison | Triggered checkpoint 40420 | -4/Garrison | Discovered new exit (range 11) 40444 | -4/Garrison | Garrison Relay disabled 40666 | -4/Garrison | Spotted B-86 Titan 40672 | -4/Garrison | Assimilated Titan 7a with formatsys_high 40779 | -4/Garrison | Triggered checkpoint 40815 | -4/Garrison | Triggered checkpoint 40873 | -4/Garrison | Triggered checkpoint 40906 | -4/Garrison | Expanded RIF knowledge: Crosswire 40958 | -4/Garrison | Garrison Relay disabled 41005 | -4/Garrison | Discovered new exit (range 12) 41159 | -4/Garrison | Triggered checkpoint 41186 | -4/Garrison | Discovered new exit (range 8) 41207 | -4/Garrison | Lost 3 allies 41237 | -4/Garrison | Garrison Relay disabled 41345 | -4/Garrison | Entered Research 41345 | -3/Research | Accompanied by 1 ally 41345 | -3/Research | Evolved 2 slots: Power x1, Propulsion x1 41545 | -3/Research | Revision forces began assault on 0b10 41621 | -3/Research | Met up with Revision 17++ 41802 | -3/Research | Identified exit to Research 41978 | -3/Research | Spotted B-86 Titan 42045 | -3/Research | Research terminal network offline 42447 | -3/Research | Discovered new exit (range 16) 42463 | -3/Research | Found Quantum Capacitor 42547 | -3/Research | Entered Quarantine 42608 | -3/Quarantine | Found Alien Artifact 42704 | -3/Quarantine | Unchained authorized (DW-4LL) 42733 | -3/Quarantine | Found Alien Artifact 42775 | -3/Quarantine | Found Hpw. Transdimensional Reconstructor 42778 | -3/Quarantine | Found Hpw. Transdimensional Reconstructor 42909 | -3/Quarantine | Cryocooling Duct disabled 42911 | -3/Quarantine | Cryocooling Duct disabled 42924 | -3/Quarantine | Ambient heat levels rising (+20) 42924 | -3/Quarantine | Non-combat units ordered to evacuate 42926 | -3/Quarantine | Ambient heat levels rising (+20) 42926 | -3/Quarantine | Combat units ordered to evacuate 43012 | -3/Quarantine | Found Alien Energy Cannon 43026 | -3/Quarantine | Quarantine Guard activated 43052 | -3/Quarantine | Spotted Quarantine Guard 43057 | -3/Quarantine | Spotted Quarantine Guard 43062 | -3/Quarantine | Spotted Quarantine Guard 43063 | -3/Quarantine | Destroyed Quarantine Guard 43071 | -3/Quarantine | Destroyed Quarantine Guard 43073 | -3/Quarantine | Spotted Quarantine Guard 43076 | -3/Quarantine | Destroyed Quarantine Guard 43078 | -3/Quarantine | DW-4LL burst out of a wall 43081 | -3/Quarantine | System corruption reached 10% 43082 | -3/Quarantine | Warped through subspace 43094 | -3/Quarantine | Spotted Quarantine Guard 43094 | -3/Quarantine | Spotted Quarantine Guard 43110 | -3/Quarantine | Destroyed Quarantine Guard 43115 | -3/Quarantine | Destroyed Quarantine Guard 43154 | -3/Quarantine | System corruption reached 30% 43161 | -3/Quarantine | Warped through subspace 43191 | -3/Quarantine | Lost 8 parts (1p5u2w) 43194 | -3/Quarantine | DW-4LL burst out of a wall 43260 | -3/Quarantine | Found Hpw. Transdimensional Reconstructor 43277 | -3/Quarantine | Spotted Quarantine Guard 43290 | -3/Quarantine | Destroyed Quarantine Guard 43341 | -3/Quarantine | Destroyed Quarantine Guard 43354 | -3/Quarantine | Spotted Quarantine Guard 43370 | -3/Quarantine | Destroyed Quarantine Guard 43387 | -3/Quarantine | DW-4LL burst out of a wall 43388 | -3/Quarantine | Spotted Quarantine Guard 43397 | -3/Quarantine | Warped through subspace 43427 | -3/Quarantine | Lost 5 parts (1p4u) 43437 | -3/Quarantine | Found Prototype Device 43437 | -3/Quarantine | Identified Exp. Shield Generator 43438 | -3/Quarantine | DW-4LL burst out of a wall 43459 | -3/Quarantine | System corrupted Last Messages --------------- 43440_ Power failure, Quantum Reactor shutdown. 43442_ Critical hit (Destroy). 43442_ Centrium Heavy Treads destroyed. 43442_ System corrupted by crushing effect (+3). 43442_ Quantum Reactor destroyed. 43442_ System corrupted by crushing effect (+1). 43447_ System corrupted: Adv. Heavy Treads fused. 43447_ Critical hit (Destroy). 43447_ Adv. Heavy Treads destroyed. 43447_ System corrupted by crushing effect (+3). 43447_ Quantum Reactor destroyed. 43447_ System corrupted by crushing effect (+5). 43448_ System corrupted: Hcl. Linear Accelerator jammed. 43449_ Critical hit (Destroy). 43457_ Adv. Heavy Siege Treads destroyed. 43457_ System corrupted by crushing effect (+5). 43457_ System corrupted: Hcl. Linear Accelerator jammed. 43458_ Faulty Exp. Shield Generator destroyed. 43458_ System corrupted by crushing effect (+5). 43459_ Cogmind system terminally corrupted. Map ----- +----------------------------------------------------+ | | | | | | | | | | | | | | | | | | | | | | | | | | | ????????????????????????????????????????????? | | ?????????????????????????###########????????? | | ?????????????????????????# """"" #????????? | | ??????????????????????#### """"" =#????????? | | ??????????????????????#""" """"" #????????? | | ??????????????????????#"R """"" #????????? | | ??????????????????????#""" #????????? | | ??????????????????????# "" ! #????????? | | ??????????????????????#### [ #????????? | | ?????????????????????????# #????????? | | ?????????????????###?#########+########?????? | | ??????????????####;;## + ! #?????? | | ??????????????# [ = @# # #?????? | | ?????????????#%8 ; # """ #?????? | | ?????????????#; " + ######## """ #? ?? | | ?????????????#;% T" # #??????# """ # ?? | | ?????????????## """ # #?????## ## ??? | | ??????????????# !# #?????# # ??? | | ??????????????######## #????? ??? | | ?????????????????????# ?????? ???? | | ?????????????????????# ???? | | ?????????????????????# ###### | | ????????????????????## " " # ] | | ????????????????????## !== " " #%""" | | ????????????????????## != " =#%""" | | ???????????????????? != ]]#!""" | | ???????????????????? **!/%=% | | ???????????????????? ]=#]""" | | ?????????????????????##+##############"# """ | | ?????????????????????????? ############ """ | | ??????????????????????????????????????## | | ??????????????????????????????????????####### | | ??????????????????????????????????????####### | | ????????????????????????????????????????????? | | ????????????????????????????????????????????? | | ????????????????????????????????????????????? | | ????????????????????????????????????????????? | +----------------------------------------------------+ Best States ------------- Heat Dissipation 119 Coolant Potential 100 Energy Generation 81 Energy Capacity 1140 Matter Stores 300 Matter Capacity 300 Sight Range 16 Robot Scan Range 19 Terrain Scan Density 10 ECM Strength 1 Jamming Range 16 Cloak Strength 4 Base Temperature (-) 200 Armor Coverage 1200 Resistance: KI 30 Resistance: EM 75 Propulsion Shielding 33 Evasion (%) 40 Recoil Reduction 6 Offensive Hacking 12 Relay Coupler Types 6 Relay Coupler Value 82 Authchip Count 1 Item Schematics ----------------- Missile Launcher | -8/Materials | Scanalyzed Robot Schematics ------------------ M-13 Machinist | -10/Materials | Hacked M-28 Smith | -7/Factory | Hacked Fabricated ------------ Molecular Scythe | x1 | -7/Factory | Preloaded M-28 Smith | x1 | -5/Factory | Authchip M-13 Machinist | x1 | -5/Factory M-13 Machinist | x1 | -4/Factory Repaired ---------- Lgt. Treads | 1% | -10/Materials Ion Cannon | 48% | -9/Materials Ion Cannon | 53% | -9/Materials Arm. Treads | 58% | -8/Materials Imp. Cooling System | 17% | -6/Factory Adv. Cryofiber Web | 61% | -5/Factory | Broken Imp. Force Field | 61% | -5/Factory Studied --------- Lgt. Treads | -9/Materials | Hacked Ion Cannon | -8/Materials | Hacked Imp. Treads | -8/Materials | Hacked Imp. Remote Datajack | -5/Factory | Hacked Lrn. Proton Cannon | -4/Factory | Hacked Com. HERF Cannon | -3/Quarantine | Hacked Adv. Remote Datajack | -3/Quarantine | Hacked Alien Tech Used ----------------- High-powered Transdimensional Reconstructor Achievements -------------- Luggage Code You Again Challenges ------------ None Game ------ Seed OpticalHugeTurbovents Manual? 0 Play Time 04:05:29 Cumulative 815.2 hours Start 2025.12.26 @ 17:08:04 End 2026.01.01 @ 14:24:04 Sessions 22 Manual Loads 0 Difficulty Rogue Special Mode None Game No. 406 Rogue 406 Adventurer 0 Explorer 0 Win Type - Total 68 Types 44/5/6/4/1/1/3/2/1/1 Lore% 92 Gallery% 85 Achievement% 69 Wizard Run 0 Options --------- Layout 0 ASCII 0 Keyboard 1 Movement Numpad Keybinds 0 Fullscreen 2 Font 18/SmallcapsGlow Map View 76x50 Zoom Use 0% Tactical HUD 1 Map Filters NONE Filters NONE Steam 1 RUN: f1cbed79-95d3-43fe-b19f-d3f5a51ebade